Workbook

Sheet 월별 참여 현황(표준중소형제주)
B2: ㅇ 월별 의무감축용량(MW)
B3: 연 | D3: 2021 | E3: 2022 | F3: 2022 | G3: 2022 | H3: 2022 | I3: 2022 | J3: 2022 | K3: 2022 | L3: 2022 | M3: 2022 | N3: 2022 | O3: 2022
B4: 월 | D4: 12 | E4: 1 | F4: 2 | G4: 3 | H4: 4 | I4: 5 | J4: 6 | K4: 7 | L4: 8 | M4: 9 | N4: 10 | O4: 11
B5: 표 준 | C5: 수도권 | D5: 589.581 | E5: 589.581 | F5: 589.581 | G5: 589.581 | H5: 589.581 | I5: 589.581 | J5: 602.616 | K5: 602.616 | L5: 586.616 | M5: 586.616 | N5: 586.616 | O5: 586.616
C6: 비수도권 | D6: 3232.646 | E6: 3232.646 | F6: 3232.646 | G6: 3232.646 | H6: 3232.646 | I6: 3232.646 | J6: 3551.56 | K6: 3551.56 | L6: 3551.56 | M6: 3551.56 | N6: 3551.56 | O6: 3551.56
B7: 중소형 | C7: 수도권 | D7: 261.369 | E7: 261.369 | F7: 261.369 | G7: 261.369 | H7: 261.369 | I7: 261.369 | J7: 269.825 | K7: 269.825 | L7: 269.046 | M7: 269.046 | N7: 269.046 | O7: 269.046
C8: 비수도권 | D8: 469.338 | E8: 469.338 | F8: 466.159 | G8: 466.159 | H8: 466.159 | I8: 466.159 | J8: 499.537 | K8: 499.537 | L8: 489.666 | M8: 489.666 | N8: 489.666 | O8: 489.666
B9: 제 주 | D9: - | E9: - | F9: - | G9: - | H9: - | I9: - | J9: - | K9: - | L9: - | M9: - | N9: - | O9: -
B10: 합 계 | D10: 4552.934 | E10: 4552.934 | F10: 4549.755 | G10: 4549.755 | H10: 4549.755 | I10: 4549.755 | J10: 4923.538 | K10: 4923.538 | L10: 4896.888 | M10: 4896.888 | N10: 4896.888 | O10: 4896.888
B12: 연 | D12: 2022 | E12: 2023 | F12: 2023 | G12: 2023 | H12: 2023 | I12: 2023 | J12: 2023 | K12: 2023 | L12: 2023 | M12: 2023 | N12: 2023 | O12: 2023
B13: 월 | D13: 12 | E13: 1 | F13: 2 | G13: 3 | H13: 4 | I13: 5 | J13: 6 | K13: 7 | L13: 8 | M13: 9 | N13: 10 | O13: 11
B14: 표 준 | C14: 수도권 | D14: 573.48 | E14: 573.48 | F14: 573.48 | G14: 573.48 | H14: 573.48 | I14: 573.48 | J14: 586.88 | K14: 586.88 | L14: 586.88 | M14: 586.88 | N14: 586.88 | O14: 586.88
C15: 비수도권 | D15: 3375.338 | E15: 3375.338 | F15: 3375.338 | G15: 3375.338 | H15: 3375.338 | I15: 3375.338 | J15: 3665.968 | K15: 3665.968 | L15: 3663.304 | M15: 3663.304 | N15: 3663.304 | O15: 3663.304
B16: 중소형 | C16: 수도권 | D16: 184.615 | E16: 184.615 | F16: 179.997 | G16: 179.997 | H16: 179.997 | I16: 179.997 | J16: 250.083 | K16: 250.083 | L16: 247.254 | M16: 247.254 | N16: 247.254 | O16: 247.254
C17: 비수도권 | D17: 250.822 | E17: 250.822 | F17: 250.822 | G17: 250.822 | H17: 250.822 | I17: 250.822 | J17: 372.14 | K17: 372.14 | L17: 365.607 | M17: 365.607 | N17: 365.607 | O17: 365.607
B18: 제 주 | D18: 37.217 | E18: 37.217 | F18: 37.217 | G18: 37.217 | H18: 37.217 | I18: 37.217 | J18: 37.217 | K18: 37.217 | L18: 32.384 | M18: 32.384 | N18: 32.384 | O18: 32.384
B19: 합 계 | D19: 4421.472 | E19: 4421.472 | F19: 4416.854 | G19: 4416.854 | H19: 4416.854 | I19: 4416.854 | J19: 4912.288 | K19: 4912.288 | L19: 4895.429 | M19: 4895.429 | N19: 4895.429 | O19: 4895.429
B21: 연 | D21: 2023 | E21: 2024 | F21: 2024 | G21: 2024 | H21: 2024 | I21: 2024 | J21: 2024 | K21: 2024 | L21: 2024 | M21: 2024 | N21: 2024 | O21: 2024
B22: 월 | D22: 12 | E22: 1 | F22: 2 | G22: 3 | H22: 4 | I22: 5 | J22: 6 | K22: 7 | L22: 8 | M22: 9 | N22: 10 | O22: 11
B23: 표 준 | C23: 수도권 | D23: 601.598 | E23: 601.598 | F23: 597.651 | G23: 597.651 | H23: 597.651 | I23: 597.651 | J23: 597.651 | K23: 597.651 | L23: 583.793 | M23: 583.793 | N23: 583.793 | O23: 583.793
C24: 비수도권 | D24: 3342.495 | E24: 3342.495 | F24: 3342.085 | G24: 3342.085 | H24: 3342.085 | I24: 3342.085 | J24: 3403.864 | K24: 3403.864 | L24: 3388.156 | M24: 3388.156 | N24: 3388.156 | O24: 3388.156
B25: 중소형 | C25: 수도권 | D25: 226.327 | E25: 226.327 | F25: 221.175 | G25: 221.175 | H25: 221.175 | I25: 221.175 | J25: 239.825 | K25: 239.825 | L25: 230.861 | M25: 230.861 | N25: 230.861 | O25: 230.861
C26: 비수도권 | D26: 350.787 | E26: 350.787 | F26: 343.982 | G26: 343.982 | H26: 343.982 | I26: 343.982 | J26: 355.782 | K26: 355.782 | L26: 320.111 | M26: 320.111 | N26: 320.111 | O26: 320.111
B27: 제 주 | D27: 33.447 | E27: 33.447 | F27: 32.311 | G27: 32.311 | H27: 32.311 | I27: 32.311 | J27: 32.311 | K27: 32.311 | L27: 32.311 | M27: 32.311 | N27: 32.311 | O27: 32.311
B28: 합 계 | D28: 4554.654 | E28: 4554.654 | F28: =SUM(F23:F27) -> 4537.204 | G28: 4537.204 | H28: 4537.204 | I28: 4537.204 | J28: 4629.433 | K28: 4629.433 | L28: 4555.232 | M28: 4555.232 | N28: 4555.232 | O28: 4555.232
B30: ㅇ 월별 수요자원 수(개)
B31: 연 | D31: 2021 | E31: 2022 | F31: 2022 | G31: 2022 | H31: 2022 | I31: 2022 | J31: 2022 | K31: 2022 | L31: 2022 | M31: 2022 | N31: 2022 | O31: 2022
B32: 월 | D32: 12 | E32: 1 | F32: 2 | G32: 3 | H32: 4 | I32: 5 | J32: 6 | K32: 7 | L32: 8 | M32: 9 | N32: 10 | O32: 11
B33: 표 준 | C33: 수도권 | D33: 12 | E33: 12 | F33: 12 | G33: 12 | H33: 12 | I33: 12 | J33: 13 | K33: 13 | L33: 12 | M33: 12 | N33: 12 | O33: 12
C34: 비수도권 | D34: 20 | E34: 20 | F34: 20 | G34: 20 | H34: 20 | I34: 20 | J34: 24 | K34: 24 | L34: 24 | M34: 24 | N34: 24 | O34: 24
B35: 중소형 | C35: 수도권 | D35: 21 | E35: 21 | F35: 21 | G35: 21 | H35: 21 | I35: 21 | J35: 23 | K35: 23 | L35: 23 | M35: 23 | N35: 23 | O35: 23
C36: 비수도권 | D36: 32 | E36: 32 | F36: 32 | G36: 32 | H36: 32 | I36: 32 | J36: 38 | K36: 38 | L36: 37 | M36: 37 | N36: 37 | O36: 37
B37: 제 주 | D37: - | E37: - | F37: - | G37: - | H37: - | I37: - | J37: - | K37: - | L37: - | M37: - | N37: - | O37: -
B38: 합 계 | D38: 85 | E38: 85 | F38: 85 | G38: 85 | H38: 85 | I38: 85 | J38: 98 | K38: 98 | L38: 96 | M38: 96 | N38: 96 | O38: 96
B40: 연 | D40: 2022 | E40: 2023 | F40: 2023 | G40: 2023 | H40: 2023 | I40: 2023 | J40: 2023 | K40: 2023 | L40: 2023 | M40: 2023 | N40: 2023 | O40: 2023
B41: 월 | D41: 12 | E41: 1 | F41: 2 | G41: 3 | H41: 4 | I41: 5 | J41: 6 | K41: 7 | L41: 8 | M41: 9 | N41: 10 | O41: 11
B42: 표 준 | C42: 수도권 | D42: 11 | E42: 11 | F42: 11 | G42: 11 | H42: 11 | I42: 11 | J42: 12 | K42: 12 | L42: 12 | M42: 12 | N42: 12 | O42: 12
C43: 비수도권 | D43: 21 | E43: 21 | F43: 21 | G43: 21 | H43: 21 | I43: 21 | J43: 26 | K43: 26 | L43: 26 | M43: 26 | N43: 26 | O43: 26
B44: 중소형 | C44: 수도권 | D44: 17 | E44: 17 | F44: 17 | G44: 17 | H44: 17 | I44: 17 | J44: 26 | K44: 26 | L44: 26 | M44: 26 | N44: 26 | O44: 26
C45: 비수도권 | D45: 18 | E45: 18 | F45: 18 | G45: 18 | H45: 18 | I45: 18 | J45: 32 | K45: 32 | L45: 32 | M45: 32 | N45: 32 | O45: 32
B46: 제 주 | D46: 5 | E46: 5 | F46: 5 | G46: 5 | H46: 5 | I46: 5 | J46: 5 | K46: 5 | L46: 4 | M46: 4 | N46: 4 | O46: 4
B47: 합 계 | D47: 72 | E47: 72 | F47: 72 | G47: 72 | H47: 72 | I47: 72 | J47: 101 | K47: 101 | L47: 100 | M47: 100 | N47: 100 | O47: 100
B49: 연 | D49: 2023 | E49: 2024 | F49: 2024 | G49: 2024 | H49: 2024 | I49: 2024 | J49: 2024 | K49: 2024 | L49: 2024 | M49: 2024 | N49: 2024 | O49: 2024
B50: 월 | D50: 12 | E50: 1 | F50: 2 | G50: 3 | H50: 4 | I50: 5 | J50: 6 | K50: 7 | L50: 8 | M50: 9 | N50: 10 | O50: 11
B51: 표 준 | C51: 수도권 | D51: 11 | E51: 11 | F51: 11 | G51: 11 | H51: 11 | I51: 11 | J51: 11 | K51: 11 | L51: 11 | M51: 11 | N51: 11 | O51: 11
C52: 비수도권 | D52: 18 | E52: 18 | F52: 18 | G52: 18 | H52: 18 | I52: 18 | J52: 20 | K52: 20 | L52: 20 | M52: 20 | N52: 20 | O52: 20
B53: 중소형 | C53: 수도권 | D53: 21 | E53: 21 | F53: 20 | G53: 20 | H53: 20 | I53: 20 | J53: 24 | K53: 24 | L53: 24 | M53: 24 | N53: 24 | O53: 24
C54: 비수도권 | D54: 26 | E54: 26 | F54: 26 | G54: 26 | H54: 26 | I54: 26 | J54: 30 | K54: 30 | L54: 27 | M54: 27 | N54: 27 | O54: 27
B55: 제 주 | D55: 4 | E55: 4 | F55: 4 | G55: 4 | H55: 4 | I55: 4 | J55: 4 | K55: 4 | L55: 4 | M55: 4 | N55: 4 | O55: 4
B56: 합 계 | D56: 80 | E56: 80 | F56: =SUM(F51:F55) -> 79 | G56: =SUM(G51:G55) -> 79 | H56: =SUM(H51:H55) -> 79 | I56: =SUM(I51:I55) -> 79 | J56: 89 | K56: 89 | L56: 86 | M56: 86 | N56: 86 | O56: 86
B58: ㅇ 월별 참여고객 수(개)
B59: 연 | D59: 2021 | E59: 2022 | F59: 2022 | G59: 2022 | H59: 2022 | I59: 2022 | J59: 2022 | K59: 2022 | L59: 2022 | M59: 2022 | N59: 2022 | O59: 2022
B60: 월 | D60: 12 | E60: 1 | F60: 2 | G60: 3 | H60: 4 | I60: 5 | J60: 6 | K60: 7 | L60: 8 | M60: 9 | N60: 10 | O60: 11
B61: 표 준 | C61: 수도권 | D61: 517 | E61: 517 | F61: 517 | G61: 524 | H61: 524 | I61: 524 | J61: 550 | K61: 550 | L61: 524 | M61: 520 | N61: 520 | O61: 520
C62: 비수도권 | D62: 1272 | E62: 1272 | F62: 1272 | G62: 1291 | H62: 1291 | I62: 1291 | J62: 1329 | K62: 1329 | L62: 1329 | M62: 1322 | N62: 1322 | O62: 1322
B63: 중소형 | C63: 수도권 | D63: 969 | E63: 969 | F63: 969 | G63: 963 | H63: 963 | I63: 963 | J63: 995 | K63: 995 | L63: 995 | M63: 1001 | N63: 1001 | O63: 1001
C64: 비수도권 | D64: 2276 | E64: 2276 | F64: 2276 | G64: 2243 | H64: 2243 | I64: 2243 | J64: 2438 | K64: 2438 | L64: 2422 | M64: 2396 | N64: 2396 | O64: 2396
B65: 제 주 | D65: - | E65: - | F65: - | G65: - | H65: - | I65: - | J65: - | K65: - | L65: - | M65: - | N65: - | O65: -
B66: 합 계 | D66: 5034 | E66: 5034 | F66: 5034 | G66: 5021 | H66: 5021 | I66: 5021 | J66: 5312 | K66: 5312 | L66: 5270 | M66: 5239 | N66: 5239 | O66: 5239
B68: 연 | D68: 2022 | E68: 2023 | F68: 2023 | G68: 2023 | H68: 2023 | I68: 2023 | J68: 2023 | K68: 2023 | L68: 2023 | M68: 2023 | N68: 2023 | O68: 2023
B69: 월 | D69: 12 | E69: 1 | F69: 2 | G69: 3 | H69: 4 | I69: 5 | J69: 6 | K69: 7 | L69: 8 | M69: 9 | N69: 10 | O69: 11
B70: 표 준 | C70: 수도권 | D70: 504 | E70: 504 | F70: 504 | G70: 503 | H70: 503 | I70: 503 | J70: 544 | K70: 544 | L70: 544 | M70: 544 | N70: 544 | O70: 544
C71: 비수도권 | D71: 1306 | E71: 1306 | F71: 1306 | G71: 1405 | H71: 1405 | I71: 1405 | J71: 1476 | K71: 1476 | L71: 1476 | M71: 1476 | N71: 1476 | O71: 1476
B72: 중소형 | C72: 수도권 | D72: 620 | E72: 620 | F72: 620 | G72: 618 | H72: 618 | I72: 618 | J72: 1020 | K72: 1020 | L72: 1020 | M72: 1020 | N72: 1020 | O72: 1020
C73: 비수도권 | D73: 1204 | E73: 1204 | F73: 1204 | G73: 1157 | H73: 1157 | I73: 1157 | J73: 1886 | K73: 1886 | L73: 1885 | M73: 1885 | N73: 1885 | O73: 1885
B74: 제 주 | D74: 128 | E74: 128 | F74: 128 | G74: 130 | H74: 130 | I74: 130 | J74: 133 | K74: 133 | L74: 121 | M74: 121 | N74: 121 | O74: 121
B75: 합 계 | D75: 3762 | E75: 3762 | F75: 3762 | G75: 3813 | H75: 3813 | I75: 3813 | J75: 5059 | K75: 5059 | L75: 5046 | M75: 5046 | N75: 5046 | O75: 5046
B77: 연 | D77: 2023 | E77: 2024 | F77: 2024 | G77: 2024 | H77: 2024 | I77: 2024 | J77: 2024 | K77: 2024 | L77: 2024 | M77: 2024 | N77: 2024 | O77: 2024
B78: 월 | D78: 12 | E78: 1 | F78: 2 | G78: 3 | H78: 4 | I78: 5 | J78: 6 | K78: 7 | L78: 8 | M78: 9 | N78: 10 | O78: 11
B79: 표 준 | C79: 수도권 | D79: 514 | E79: 514 | F79: 514 | G79: 513 | H79: 513 | I79: 513 | J79: 543 | K79: 542 | L79: 540 | M79: 544 | N79: 544 | O79: 544
C80: 비수도권 | D80: 1313 | E80: 1313 | F80: 1313 | G80: 1325 | H80: 1325 | I80: 1325 | J80: 1345 | K80: 1344 | L80: 1337 | M80: 1354 | N80: 1354 | O80: 1354
B81: 중소형 | C81: 수도권 | D81: 878 | E81: 878 | F81: 866 | G81: 856 | H81: 856 | I81: 856 | J81: 1004 | K81: 1004 | L81: 1003 | M81: 981 | N81: 981 | O81: 981
C82: 비수도권 | D82: 1762 | E82: 1762 | F82: 1762 | G82: 1718 | H82: 1718 | I82: 1718 | J82: 1860 | K82: 1857 | L82: 1782 | M82: 1761 | N82: 1761 | O82: 1761
B83: 제 주 | D83: 104 | E83: 104 | F83: 104 | G83: 101 | H83: 101 | I83: 101 | J83: 100 | K83: 99 | L83: 99 | M83: 99 | N83: 99 | O83: 99
B84: 합 계 | D84: 4571 | E84: 4571 | F84: =SUM(F79:F83) -> 4559 | G84: 4513 | H84: 4513 | I84: 4513 | J84: 4852 | K84: 4846 | L84: 4761 | M84: 4739 | N84: 4739 | O84: 4739

Sheet 월별 참여 현황(국민주파수플러스)
B2: ㅇ 국민DR 참여 현황
B3: 연 | C3: 2021 | D3: 2022 | E3: 2022 | F3: 2022 | G3: 2022 | H3: 2022 | I3: 2022 | J3: 2022 | K3: 2022 | L3: 2022 | M3: 2022 | N3: 2022
B4: 월 | C4: 12 | D4: 1 | E4: 2 | F4: 3 | G4: 4 | H4: 5 | I4: 6 | J4: 7 | K4: 8 | L4: 9 | M4: 10 | N4: 11
B5: 수요자원 수(개) | C5: 18 | D5: 18 | E5: 19 | F5: 20 | G5: 21 | H5: 21 | I5: 21 | J5: 23 | K5: 23 | L5: 27 | M5: 28 | N5: 29
B6: 참여고객 수(개) | C6: 3979 | D6: 3979 | E6: 4505 | F6: 4727 | G6: 4898 | H6: 6785 | I6: 6823 | J6: 6959 | K6: 7355 | L6: 8698 | M6: 9502 | N6: 11456
B8: 연 | C8: 2022 | D8: 2023 | E8: 2023 | F8: 2023 | G8: 2023 | H8: 2023 | I8: 2023 | J8: 2023 | K8: 2023 | L8: 2023 | M8: 2023 | N8: 2023
B9: 월 | C9: 12 | D9: 1 | E9: 2 | F9: 3 | G9: 4 | H9: 5 | I9: 6 | J9: 7 | K9: 8 | L9: 9 | M9: 10 | N9: 11
B10: 수요자원 수(개) | C10: 30 | D10: 35 | E10: 35 | F10: 37 | G10: 38 | H10: 38 | I10: 38 | J10: 38 | K10: 49 | L10: 52 | M10: 54 | N10: 54
B11: 참여고객 수(개) | C11: 12711 | D11: 13982 | E11: 14457 | F11: 14834 | G11: 15033 | H11: 15199 | I11: 15524 | J11: 17317 | K11: 18136 | L11: 19602 | M11: 20976 | N11: 20976
B13: 연 | C13: 2023 | D13: 2024 | E13: 2024 | F13: 2024 | G13: 2024 | H13: 2024 | I13: 2024 | J13: 2024 | K13: 2024 | L13: 2024 | M13: 2024 | N13: 2024
B14: 월 | C14: 12 | D14: 1 | E14: 2 | F14: 3 | G14: 4 | H14: 5 | I14: 6 | J14: 7 | K14: 8 | L14: 9 | M14: 10 | N14: 11
B15: 수요자원 수(개) | C15: 54 | D15: 60 | E15: 61 | F15: 63 | G15: 73 | H15: 73 | I15: 78 | J15: 84 | K15: 82 | L15: 83 | M15: 98 | N15: 108
B16: 참여고객 수(개) | C16: 22731 | D16: 24300 | E16: 25053 | F16: 26489 | G16: 36355 | H16: 39485 | I16: 43977 | J16: 49755 | K16: 55071 | L16: 55708 | M16: 57736 | N16: 63714
B18: ㅇ 주파수DR 참여 현황
B19: 연 | C19: 2021 | D19: 2022 | E19: 2022 | F19: 2022 | G19: 2022 | H19: 2022 | I19: 2022 | J19: 2022 | K19: 2022 | L19: 2022 | M19: 2022 | N19: 2022
B20: 월 | C20: 12 | D20: 1 | E20: 2 | F20: 3 | G20: 4 | H20: 5 | I20: 6 | J20: 7 | K20: 8 | L20: 9 | M20: 10 | N20: 11
B21: 감축예상용량(MW) | C21: 709.735 | D21: 709.735 | E21: 709.735 | F21: 709.735 | G21: 709.735 | H21: 709.735 | I21: 709.735 | J21: 709.735 | K21: 709.735 | L21: 709.735 | M21: 709.735 | N21: 709.735
B22: 수요자원 수(개) | C22: 34 | D22: 34 | E22: 34 | F22: 34 | G22: 34 | H22: 34 | I22: 34 | J22: 34 | K22: 34 | L22: 34 | M22: 34 | N22: 34
B23: 참여고객 수(개) | C23: 34 | D23: 34 | E23: 34 | F23: 34 | G23: 34 | H23: 34 | I23: 34 | J23: 34 | K23: 34 | L23: 34 | M23: 34 | N23: 34
B25: 연 | C25: 2022 | D25: 2023 | E25: 2023 | F25: 2023 | G25: 2023 | H25: 2023 | I25: 2023 | J25: 2023 | K25: 2023 | L25: 2023 | M25: 2023 | N25: 2023
B26: 월 | C26: 12 | D26: 1 | E26: 2 | F26: 3 | G26: 4 | H26: 5 | I26: 6 | J26: 7 | K26: 8 | L26: 9 | M26: 10 | N26: 11
B27: 1단계 감축예상용량(MW) | C27: 689.564 | D27: 689.564 | E27: 689.564 | F27: 714.386 | G27: 714.386 | H27: 714.386 | I27: 742.181 | J27: 742.181 | K27: 742.181 | L27: 742.181 | M27: 742.181 | N27: 742.181
B28: 1단계 수요자원 수(개) | C28: 43 | D28: 43 | E28: 43 | F28: 50 | G28: 50 | H28: 50 | I28: 51 | J28: 51 | K28: 51 | L28: 51 | M28: 51 | N28: 51
B29: 1단계 참여고객 수(개) | C29: 44 | D29: 44 | E29: 44 | F29: 52 | G29: 52 | H29: 52 | I29: 56 | J29: 56 | K29: 56 | L29: 56 | M29: 56 | N29: 56
B30: 2단계 감축예상용량(MW) | F30: 33.753 | G30: 33.753 | H30: 33.753 | I30: 108.122 | J30: 108.122 | K30: 108.122 | L30: 108.122 | M30: 108.122 | N30: 108.122
B31: 2단계 수요자원 수(개) | F31: 1 | G31: 1 | H31: 1 | I31: 2 | J31: 2 | K31: 2 | L31: 2 | M31: 2 | N31: 2
B32: 2단계 참여고객 수(개) | F32: 2 | G32: 2 | H32: 2 | I32: 4 | J32: 4 | K32: 4 | L32: 4 | M32: 4 | N32: 4
B34: 연 | C34: 2023 | D34: 2024 | E34: 2024 | F34: 2024 | G34: 2024 | H34: 2024 | I34: 2024 | J34: 2024 | K34: 2024 | L34: 2024 | M34: 2024 | N34: 2024
B35: 월 | C35: 12 | D35: 1 | E35: 2 | F35: 3 | G35: 4 | H35: 5 | I35: 6 | J35: 7 | K35: 8 | L35: 9 | M35: 10 | N35: 11
B36: 1단계 감축예상용량(MW) | C36: 728.433 | D36: 728.433 | E36: 728.433 | F36: 728.433 | G36: 728.433 | H36: 728.433 | I36: 728.433 | J36: 728.433 | K36: 728.433 | L36: 728.433 | M36: 728.433 | N36: 728.433
B37: 1단계 수요자원 수(개) | C37: 50 | D37: 50 | E37: 50 | F37: 50 | G37: 50 | H37: 50 | I37: 50 | J37: 50 | K37: 50 | L37: 50 | M37: 50 | N37: 50
B38: 1단계 참여고객 수(개) | C38: 56 | D38: 56 | E38: 56 | F38: 56 | G38: 56 | H38: 56 | I38: 56 | J38: 56 | K38: 56 | L38: 56 | M38: 56 | N38: 56
B39: 2단계 감축예상용량(MW) | C39: 310.991 | D39: 310.991 | E39: 310.991 | F39: 310.991 | G39: 310.991 | H39: 310.991 | I39: 310.991 | J39: 310.991 | K39: 310.991 | L39: 310.991 | M39: 310.991 | N39: 310.991
B40: 2단계 수요자원 수(개) | C40: 22 | D40: 22 | E40: 22 | F40: 22 | G40: 22 | H40: 22 | I40: 22 | J40: 22 | K40: 22 | L40: 22 | M40: 22 | N40: 22
B41: 2단계 참여고객 수(개) | C41: 27 | D41: 27 | E41: 27 | F41: 27 | G41: 27 | H41: 27 | I41: 27 | J41: 27 | K41: 27 | L41: 27 | M41: 27 | N41: 27
B43: ㅇ 육지 플러스DR 참여 현황
B44: 연 | C44: 2021 | D44: 2022 | E44: 2022 | F44: 2022 | G44: 2022 | H44: 2022 | I44: 2022 | J44: 2022 | K44: 2022 | L44: 2022 | M44: 2022 | N44: 2022
B45: 월 | C45: 12 | D45: 1 | E45: 2 | F45: 3 | G45: 4 | H45: 5 | I45: 6 | J45: 7 | K45: 8 | L45: 9 | M45: 10 | N45: 11
B46: 증대가능용량(MW) | G46: 1295.174774 | H46: 1295.174774 | I46: 1337.523774 | J46: 1337.523774 | K46: 1337.523774 | L46: 1639.561774 | M46: 1639.561774 | N46: 1639.561774
B47: 수요자원 수(개) | G47: 137 | H47: 137 | I47: 157 | J47: 157 | K47: 157 | L47: 173 | M47: 173 | N47: 173
B48: 참여고객 수(개) | G48: 26209 | H48: 26209 | I48: 26968 | J48: 26968 | K48: 26968 | L48: 32892 | M48: 32892 | N48: 32892
B50: ㅇ 제주 플러스DR 참여 현황
B51: 연 | C51: 2021 | D51: 2022 | E51: 2022 | F51: 2022 | G51: 2022 | H51: 2022 | I51: 2022 | J51: 2022 | K51: 2022 | L51: 2022 | M51: 2022 | N51: 2022
B52: 월 | C52: 12 | D52: 1 | E52: 2 | F52: 3 | G52: 4 | H52: 5 | I52: 6 | J52: 7 | K52: 8 | L52: 9 | M52: 10 | N52: 11
B53: 수요자원 수(개) | C53: 514 | D53: 514 | E53: 514 | F53: 555 | G53: 555 | H53: 555 | I53: 602 | J53: 602 | K53: 602 | L53: 814 | M53: 814 | N53: 814
B54: 참여고객 수(개) | C54: 965 | D54: 965 | E54: 965 | F54: 1009 | G54: 1009 | H54: 1009 | I54: 1058 | J54: 1058 | K54: 1058 | L54: 1274 | M54: 1274 | N54: 1274
B56: 연 | C56: 2022 | D56: 2023 | E56: 2023 | F56: 2023 | G56: 2023 | H56: 2023 | I56: 2023 | J56: 2023 | K56: 2023 | L56: 2023 | M56: 2023 | N56: 2023
B57: 월 | C57: 12 | D57: 1 | E57: 2 | F57: 3 | G57: 4 | H57: 5 | I57: 6 | J57: 7 | K57: 8 | L57: 9 | M57: 10 | N57: 11
B58: 수요자원 수(개) | C58: 838 | D58: 838 | E58: 838 | F58: 17 | G58: 17 | H58: 17 | I58: 18 | J58: 18 | K58: 18 | L58: 18 | M58: 18 | N58: 18
B59: 참여고객 수(개) | C59: 1279 | D59: 1279 | E59: 1279 | F59: 1289 | G59: 1289 | H59: 1289 | I59: 1289 | J59: 1289 | K59: 1289 | L59: 1289 | M59: 1289 | N59: 1289
B61: 연 | C61: 2023 | D61: 2024 | E61: 2024 | F61: 2024 | G61: 2024 | H61: 2024 | I61: 2024 | J61: 2024 | K61: 2024 | L61: 2024 | M61: 2024 | N61: 2024
B62: 월 | C62: 12 | D62: 1 | E62: 2 | F62: 3 | G62: 4 | H62: 5 | I62: 6 | J62: 7 | K62: 8 | L62: 9 | M62: 10 | N62: 11
B63: 수요자원 수(개) | C63: 23 | D63: 23 | E63: 26 | F63: 26 | G63: 26 | H63: 26 | I63: 29 | J63: 29 | K63: 29 | L63: 30 | M63: 30 | N63: 30
B64: 참여고객 수(개) | C64: 1558 | D64: 1558 | E64: 1662 | F64: 1680 | G64: 1680 | H64: 1680 | I64: 1807 | J64: 1807 | K64: 1807 | L64: 1736 | M64: 1736 | N64: 1736

Sheet 월별 가격지표 현황
B2: ㅇ 월별 순편익가격(NBTP) 및 계통한계가격(SMP)(원/kWh)
B3: 연 | C3: 2021 | D3: 2021 | E3: 2021 | F3: 2021 | G3: 2021 | H3: 2021 | I3: 2021 | J3: 2021 | K3: 2021 | L3: 2021 | M3: 2021 | N3: 2021
B4: 월 | C4: 1 | D4: 2 | E4: 3 | F4: 4 | G4: 5 | H4: 6 | I4: 7 | J4: 8 | K4: 9 | L4: 10 | M4: 11 | N4: 12
B5: 육지NBTP | C5: 71.04 | D5: 77.11 | E5: 85.29 | F5: 74.51 | G5: 80.56 | H5: 84.34 | I5: 89.06 | J5: 97.11 | K5: 103.77 | L5: 108.35 | M5: 134.15 | N5: 148.01
B6: 제주NBTP | C6: - | D6: - | E6: - | F6: - | G6: - | H6: - | I6: - | J6: - | K6: - | L6: - | M6: - | N6: -
B7: 육지SMP | C7: 70.47 | D7: 75.25 | E7: 83.78 | F7: 75.97 | G7: 78.93 | H7: 82.72 | I7: 87.04 | J7: 93.41 | K7: 98.21 | L7: 107.53 | M7: 126.83 | N7: 142.46
B8: 제주SMP | C8: 87.75 | D8: 92.84 | E8: 124.79 | F8: 111 | G8: 95.39 | H8: 121.49 | I8: 133.68 | J8: 153.23 | K8: 149.31 | L8: 130.14 | M8: 149.77 | N8: 175.72
B10: 연 | C10: 2022 | D10: 2022 | E10: 2022 | F10: 2022 | G10: 2022 | H10: 2022 | I10: 2022 | J10: 2022 | K10: 2022 | L10: 2022 | M10: 2022 | N10: 2022
B11: 월 | C11: 1 | D11: 2 | E11: 3 | F11: 4 | G11: 5 | H11: 6 | I11: 7 | J11: 8 | K11: 9 | L11: 10 | M11: 11 | N11: 12
B12: 육지NBTP | C12: 166.08 | D12: 216.78 | E12: 197.17 | F12: 210.88 | G12: 141.91 | H12: 134.96 | I12: 161.98 | J12: 217.71 | K12: 252.06 | L12: 270.62 | M12: 263.69 | N12: 279.9
B13: 제주NBTP | C13: - | D13: - | E13: - | F13: - | G13: - | H13: - | I13: - | J13: - | K13: - | L13: - | M13: - | N13: 371.96
B14: 육지SMP | C14: 153.82 | D14: 196.93 | E14: 192.34 | F14: 201.58 | G14: 139.06 | H14: 128.84 | I14: 150.6 | J14: 196.02 | K14: 233.37 | L14: 251.61 | M14: 242.17 | N14: 267.55
B15: 제주SMP | C15: 206.86 | D15: 229.85 | E15: 229.05 | F15: 250.33 | G15: 263.73 | H15: 214.32 | I15: 261.31 | J15: 340.91 | K15: 238.44 | L15: 255.03 | M15: 243.97 | N15: 275.15
B17: 연 | C17: 2023 | D17: 2023 | E17: 2023 | F17: 2023 | G17: 2023 | H17: 2023 | I17: 2023 | J17: 2023 | K17: 2023 | L17: 2023 | M17: 2023 | N17: 2023
B18: 월 | C18: 1 | D18: 2 | E18: 3 | F18: 4 | G18: 5 | H18: 6 | I18: 7 | J18: 8 | K18: 9 | L18: 10 | M18: 11 | N18: 12
B19: 육지NBTP | C19: 262.73 | D19: 266.58 | E19: 246.42 | F19: 178.87 | G19: 164.7 | H19: 159.33 | I19: 166.19 | J19: 156.76 | K19: 154.32 | L19: 163.91 | M19: 138.79 | N19: 155.91
B20: 제주NBTP | C20: 346.7 | D20: 317.22 | E20: 300.47 | F20: 207.89 | G20: 200.49 | H20: 193.91 | I20: 203.36 | J20: 192.23 | K20: 166.47 | L20: 176.29 | M20: 156.15 | N20: 165.35
B21: 육지SMP | C21: 240.73 | D21: 253.48 | E21: 215.87 | F21: 164.87 | G21: 143.64 | H21: 147.12 | I21: 153.39 | J21: 146.91 | K21: 140.93 | L21: 136.73 | M21: 120.82 | N21: 131.05
B22: 제주SMP | C22: 247.55 | D22: 260.27 | E22: 218.2 | F22: 163.87 | G22: 143.07 | H22: 147.71 | I22: 164.72 | J22: 173.17 | K22: 162.46 | L22: 163.17 | M22: 123.37 | N22: 137.04
B24: 연 | C24: 2024 | D24: 2024 | E24: 2024 | F24: 2024 | G24: 2024 | H24: 2024 | I24: 2024 | J24: 2024 | K24: 2024 | L24: 2024 | M24: 2024 | N24: 2024
B25: 월 | C25: 1 | D25: 2 | E25: 3 | F25: 4 | G25: 5 | H25: 6 | I25: 7 | J25: 8 | K25: 9 | L25: 10 | M25: 11 | N25: 12
B26: 육지NBTP | C26: 174 | D26: 156.32 | E26: 158.56 | F26: 146.96 | G26: 142.16 | H26: 138.26 | I26: 141.12 | J26: 145.53 | K26: 147.71
B27: 제주NBTP | C27: 179.38 | D27: 165.15 | E27: 156.22 | F27: 148.8 | G27: 138.07 | H27: 137.13 | I27: 152.41 | J27: 164.08 | K27: 161.53
B28: 육지SMP | C28: 137.91 | D28: 119.49 | E28: 134.4 | F28: 125.9 | G28: 126.35 | H28: 125.99 | I28: 132.46 | J28: 146.21 | K28: 138.78
B29: 제주SMP | C29: 150.67 | D29: 122.34 | E29: 140.61 | F29: 141.72 | G29: 127.09 | H29: 126.41 | I29: 135.55 | J29: 152.02 | K29: 145.1
B31: ㅇ 월별 기본정산금 단가
B32: 연 | C32: 2021 | D32: 2021 | E32: 2021 | F32: 2021 | G32: 2021 | H32: 2021 | I32: 2021 | J32: 2021 | K32: 2021 | L32: 2021 | M32: 2021 | N32: 2021
B33: 월 | C33: 1 | D33: 2 | E33: 3 | F33: 4 | G33: 5 | H33: 6 | I33: 7 | J33: 8 | K33: 9 | L33: 10 | M33: 11 | N33: 12
B34: 표준DR(원/kW-월) | C34: 4750.8 | D34: 2863.62 | E34: 853.6 | F34: 502.92 | G34: 421.8 | H34: 997.04 | I34: 3862.98 | J34: 4810.26 | K34: 1502.14 | L34: 463.79 | M34: 1671.34 | N34: 5132.68
B35: 중소형DR(원/kW-월) | C35: 5807.6 | D35: 3500.82 | E35: 1043.24 | F35: 613.8 | G35: 514.9 | H35: 1218.58 | I35: 4725.16 | J35: 5883.15 | K35: 1837.68 | L35: 566.39 | M35: 2044.9 | N35: 6277.85
B36: 국민DR(원/kWh) | C36: 56347.39 | D36: 56347.39 | E36: 56347.39 | F36: 56347.39 | G36: 56347.39 | H36: 56347.39 | I36: 57315.32 | J36: 57315.32 | K36: 57315.32 | L36: 57335.15 | M36: 57335.15 | N36: 59644.35
B37: 주파수DR(원/kW-10m) | C37: 33772.5 | D37: 33772.5 | E37: 33772.5 | F37: 33772.5 | G37: 33772.5 | H37: 33772.5 | I37: 33676.11 | J37: 33676.11 | K37: 33676.11 | L37: 33698.07 | M37: 33698.07 | N37: 31108.95
B39: 연 | C39: 2022 | D39: 2022 | E39: 2022 | F39: 2022 | G39: 2022 | H39: 2022 | I39: 2022 | J39: 2022 | K39: 2022 | L39: 2022 | M39: 2022 | N39: 2022
B40: 월 | C40: 1 | D40: 2 | E40: 3 | F40: 4 | G40: 5 | H40: 6 | I40: 7 | J40: 8 | K40: 9 | L40: 10 | M40: 11 | N40: 12
B41: 표준/중소형DR(원/kW-월) | C41: 4599 | D41: 2723.4 | E41: 748.02 | F41: 473.76 | G41: 459.9 | H41: 941.6 | I41: 4355.4 | J41: 5541.58 | K41: 1900.2 | L41: 487.92 | M41: 1246.08 | N41: 4343.9
B42: 제주DR(원/kW-월) | C42: - | D42: - | E42: - | F42: - | G42: - | H42: - | I42: - | J42: - | K42: - | L42: - | M42: - | N42: 4834.5
B43: 국민DR(육지)(원/kWh) | C43: 58632.58 | D43: 58632.58 | E43: 58632.58 | F43: 58632.58 | G43: 58632.58 | H43: 58632.58 | I43: 63502.27 | J43: 63502.27 | K43: 63502.27 | L43: 63502.27 | M43: 63502.27 | N43: 63115.51
B44: 국민DR(제주)(원/kWh) | C44: - | D44: - | E44: - | F44: - | G44: - | H44: - | I44: - | J44: - | K44: - | L44: - | M44: - | N44: 64575.87
B45: 주파수DR(원/kW-10m) | C45: 31108.95 | D45: 31108.95 | E45: 31108.95 | F45: 31108.95 | G45: 31108.95 | H45: 31108.95 | I45: 32485.95 | J45: 32485.95 | K45: 32485.95 | L45: 32485.95 | M45: 32485.95 | N45: 33211.35
B47: 연 | C47: 2023 | D47: 2023 | E47: 2023 | F47: 2023 | G47: 2023 | H47: 2023 | I47: 2023 | J47: 2023 | K47: 2023 | L47: 2023 | M47: 2023 | N47: 2023
B48: 월 | C48: 1 | D48: 2 | E48: 3 | F48: 4 | G48: 5 | H48: 6 | I48: 7 | J48: 8 | K48: 9 | L48: 10 | M48: 11 | N48: 12
B49: 표준/중소형DR(원/kW-월) | C49: 2943 | D49: 2475.8 | E49: 1212.86 | F49: 385.8 | G49: 445.83 | H49: 1657.74 | I49: 3714.9 | J49: 4017.64 | K49: 2171.7 | L49: 645.62 | M49: 1921.48 | N49: 3843.4
B50: 제주DR(원/kW-월) | C50: 3583.4 | D50: 2902.8 | E50: 1299.1 | F50: 479.6 | G50: 549.78 | H50: 1968.33 | I50: 4521.93 | J50: 4955.28 | K50: 2535.93 | L50: 817.2 | M50: 2054.58 | N50: 4542.8
B51: 국민DR(육지)(원/kWh) | C51: 66055.85 | D51: 66055.85 | E51: 66055.85 | F51: 66055.85 | G51: 65993.27 | H51: 65993.27 | I51: 67659.4 | J51: 67659.4 | K51: 67566.85 | L51: 67566.85 | M51: 67566.85 | N51: 67566.85
B52: 국민DR(제주)(원/kWh) | C52: 70847.34 | D52: 70847.34 | E52: 70847.34 | F52: 70847.34 | G52: 70776.41 | H52: 70776.41 | I52: 76312.16 | J52: 76312.16 | K52: 76208.01 | L52: 76208.01 | M52: 76208.01 | N52: 76208.01
B53: 주파수DR(원/kW-10m) | C53: 33211.35 | D53: 33211.35 | E53: 33211.35 | F53: 33211.35 | G53: 33211.35 | H53: 33211.35 | I53: 35924.04 | J53: 35924.04 | K53: 35924.04 | L53: 35924.04 | M53: 35924.04 | N53: 39791.52
B55: 연 | C55: 2024 | D55: 2024 | E55: 2024 | F55: 2024 | G55: 2024 | H55: 2024 | I55: 2024 | J55: 2024 | K55: 2024 | L55: 2024 | M55: 2024 | N55: 2024
B56: 월 | C56: 1 | D56: 2 | E56: 3 | F56: 4 | G56: 5 | H56: 6 | I56: 7 | J56: 8 | K56: 9 | L56: 10 | M56: 11 | N56: 12
B57: 표준/중소형DR(원/kW-월) | C57: 3062.4 | D57: 2352.96 | E57: 1383.2 | F57: 668.85 | G57: 766.71 | H57: 2013.81 | I57: 3424.7 | J57: 3166.8 | K57: 2086.92
B58: 제주DR(원/kW-월) | C58: 3774.98 | D58: 2842.78 | E58: 1580.8 | F58: 783.51 | G58: 911.19 | H58: 2447.39 | I58: 4285.36 | J58: 3963.54 | K58: 2557.98
B59: 국민DR(육지)(원/kWh) | C59: 71306.25 | D59: 71306.25 | E59: 71306.25 | F59: 71306.25 | G59: 71306.25 | H59: 71306.25 | I59: 70588.03 | J59: 70588.03 | K59: 70588.03
B60: 국민DR(제주)(원/kWh) | C60: 80247.6 | D60: 80247.6 | E60: 80247.6 | F60: 80247.6 | G60: 80247.6 | H60: 80247.6 | I60: 80020.12 | J60: 80020.12 | K60: 80020.12
B61: 주파수DR(원/kW-10m) | C61: 39791.52 | D61: 39791.52 | E61: 39791.52 | F61: 39791.52 | G61: 39791.52 | H61: 39791.52 | I61: 40576.41 | J61: 40576.41 | K61: 40576.41

Sheet 월별 감축 및 증대 실적
B2: ㅇ 신뢰성DR 감축실적
B3: 차수 | C3: 연 | D3: 월 | E3: 일 | F3: 감축요청량(MWh) | G3: 감축이행량(MWh) | H3: 이행률(%) | I3: 비 고
B4: 7 | C4: 2020 | D4: 12 | E4: 9 | F4: 4499.344 | G4: 5024.906 | H4: =G4/F4*100 -> 111.6808584 | I4: 감축시험
B5: 7 | C5: 2020 | D5: 12 | E5: 22 | F5: 95.762 | G5: 102.341 | H5: =G5/F5*100 -> 106.8701573 | I5: 감축재시험
B6: 7 | C6: 2021 | D6: 6 | E6: 8 | F6: 4695.325 | G6: 5331.635 | H6: 113.5519905 | I6: 감축시험
B7: 7 | C7: 2021 | D7: 6 | E7: 22 | F7: 451.2 | G7: 418.405 | H7: 92.73160461 | I7: 감축재시험
B8: 8 | C8: 2021 | D8: 12 | E8: 7 | F8: 4552.934 | G8: 5048.567 | H8: 110.8860133 | I8: 감축시험
B9: 8 | C9: 2021 | D9: 12 | E9: 20 | F9: 33.602 | G9: 30.917 | H9: 92.0094042 | I9: 감축재시험
B10: 8 | C10: 2021 | D10: 12 | E10: 21 | F10: 422.03 | G10: 456.187 | H10: 108.0935005 | I10: 감축재시험
B11: 8 | C11: 2022 | D11: 6 | E11: 8 | F11: 4923.538 | G11: 5748.986 | H11: 116.7653423 | I11: 감축시험
B12: 8 | C12: 2022 | D12: 6 | E12: 22 | F12: 359.243 | G12: 348.405 | H12: 96.98310058 | I12: 감축재시험
B13: 9 | C13: 2022 | D13: 12 | E13: 2 | F13: 4421.472 | G13: 4974.637 | H13: 112.5108787 | I13: 감축시험
B14: 9 | C14: 2022 | D14: 12 | E14: 19 | F14: 221.728 | G14: 246.422 | H14: 111.1370688 | I14: 감축재시험
B15: 9 | C15: 2023 | D15: 6 | E15: 7 | F15: 2493.101 | G15: 2879.568 | H15: =G15/F15*100 -> 115.5014578 | I15: 감축시험
B16: 9 | C16: 2023 | D16: 6 | E16: 8 | F16: 2419.187 | G16: 2804.538 | H16: 115.9289464 | I16: 감축시험
B17: 9 | C17: 2023 | D17: 6 | E17: 20 | F17: 470.239 | G17: 474.279 | H17: 100.8591376 | I17: 감축재시험
B18: 10 | C18: 2023 | D18: 12 | E18: 5 | F18: 2260.097 | G18: 2602.802 | H18: =G18/F18*100 -> 115.1632872 | I18: 감축시험
B19: 10 | C19: 2023 | D19: 12 | E19: 6 | F19: 2294.557 | G19: 2718.236 | H19: =G19/F19*100 -> 118.4645228 | I19: 감축시험
B20: 10 | C20: 2023 | D20: 12 | E20: 20 | F20: 31.7 | G20: 31.995 | H20: 100.9305994 | I20: 감축재시험
B21: 10 | C21: 2024 | D21: 1 | E21: 23 | F21: 2250.547 | G21: 2154.074 | H21: 95.71335324 | I21: 감축신뢰성시험
B22: 10 | C22: 2024 | D22: 1 | E22: 24 | F22: 2286.657 | G22: 2406.53 | H22: 105.2422816 | I22: 감축신뢰성시험
B23: 10 | C23: 2024 | D23: 6 | E23: 10 | F23: 2329.575 | G23: 2518.774 | H23: 108.1216102 | I23: 감축시험
B24: 10 | C24: 2024 | D24: 6 | E24: 11 | F24: 2299.858 | G24: 2519.409 | H24: 109.546285 | I24: 감축시험
B25: 10 | C25: 2024 | D25: 6 | E25: 20 | F25: 53.851 | G25: 47.584 | H25: 88.3623331 | I25: 감축재시험
B26: 10 | C26: 2024 | D26: 8 | E26: 7 | F26: 32.311 | G26: 28.494 | H26: 88.18668565 | I26: 감축신뢰성시험
B27: 10 | C27: 2024 | D27: 8 | E27: 8 | F27: 2263.08 | G27: 2403.792 | H27: 106.217721 | I27: 감축신뢰성시험
B28: 10 | C28: 2024 | D28: 8 | E28: 12 | F28: 2259.842 | G28: 2301.88 | H28: 101.8602185 | I28: 감축신뢰성시험
B29: 10 | C29: 2024 | D29: 8 | E29: 13 | F29: 705.37 | G29: 672.47 | H29: 95.33578122
B30: 10 | C30: 2024 | D30: 8 | E30: 20 | F30: 913.378 | G30: 773.955 | H30: 84.73545454
B31: 10 | C31: 2024 | D31: 9 | E31: 19 | F31: 5117.439 | G31: 5785.304 | H31: =G31/F31*100 -> 113.0507662
B33: ㅇ 자발적DR 감축실적
B34: 차수 | C34: 7 | D34: 7 | E34: 7 | F34: 7 | G34: 7 | H34: 7 | I34: 7 | J34: 7 | K34: 7 | L34: 7 | M34: 7 | N34: 7 | O34: 7
B35: 연 | C35: 2020 | D35: 2021 | E35: 2021 | F35: 2021 | G35: 2021 | H35: 2021 | I35: 2021 | J35: 2021 | K35: 2021 | L35: 2021 | M35: 2021 | N35: 2021 | O35: 합 계
B36: 월 | C36: 12 | D36: 1 | E36: 2 | F36: 3 | G36: 4 | H36: 5 | I36: 6 | J36: 7 | K36: 8 | L36: 9 | M36: 10 | N36: 11
B37: 입찰량(MWh) | C37: 82604 | D37: 40950 | E37: 44624 | F37: 55559 | G37: 43829 | H37: 55307 | I37: 65664 | J37: 64552 | K37: 102946 | L37: 69340 | M37: 66018 | N37: 54854 | O37: =SUM(C37:N37) -> 746247
B38: 낙찰량(MWh) | C38: 34971.713 | D38: 15913.058 | E38: 12225.572 | F38: 12938.3 | G38: 27391 | H38: 31050 | I38: 33940 | J38: 34889.7 | K38: 27622 | L38: 33419 | M38: 39140 | N38: 11046 | O38: =SUM(C38:N38) -> 314546.343
B39: 감축량(MWh) | C39: 53220.054 | D39: 22477.291 | E39: 19306.68 | F39: 21333.312 | G39: 47427.513 | H39: 51359.423 | I39: 52682.112 | J39: 55036.646 | K39: 40413.181 | L39: 53375.541 | M39: 59501.409 | N39: 18100.87 | O39: 494234.032
B40: 이행률(%) | C40: =C39/C38*100 -> 152.1802893 | D40: =D39/D38*100 -> 141.2506069 | E40: 157.9204638 | F40: 164.8849694 | G40: 173.1499872 | H40: 165.4087697 | I40: 155.2213082 | J40: 157.7446811 | K40: 146.3079466 | L40: 159.7161525 | M40: 152.0219954 | N40: 163.868097 | O40: 157.1259825
B42: 차수 | C42: 8 | D42: 8 | E42: 8 | F42: 8 | G42: 8 | H42: 8 | I42: 8 | J42: 8 | K42: 8 | L42: 8 | M42: 8 | N42: 8 | O42: 8
B43: 연 | C43: 2021 | D43: 2022 | E43: 2022 | F43: 2022 | G43: 2022 | H43: 2022 | I43: 2022 | J43: 2022 | K43: 2022 | L43: 2022 | M43: 2022 | N43: 2022 | O43: 합 계
B44: 월 | C44: 12 | D44: 1 | E44: 2 | F44: 3 | G44: 4 | H44: 5 | I44: 6 | J44: 7 | K44: 8 | L44: 9 | M44: 10 | N44: 11
B45: 입찰량(MWh) | C45: 73411 | D45: 41737 | E45: 66762 | F45: 58690 | G45: 50563 | H45: 76949 | I45: 84205 | J45: 82595 | K45: 139798 | L45: 74604.7 | M45: 74325.8 | N45: 70575.4 | O45: =SUM(C45:N45) -> 894215.9
B46: 낙찰량(MWh) | C46: 18870 | D46: 6402.4 | E46: 11270 | F46: 12535 | G46: 5436 | H46: 26970 | I46: 21185 | J46: 8582 | K46: 42789 | L46: 9290.708 | M46: 8003.157 | N46: 4989.405 | O46: =SUM(C46:N46) -> 176322.67
B47: 감축량(MWh) | C47: 29282.24 | D47: 9215.756 | E47: 16857.351 | F47: 22307.524 | G47: 9641.667 | H47: 43134.995 | I47: 33865.103 | J47: 13157.735 | K47: 66370.474 | L47: 13768.437 | M47: 11848.902 | N47: 8313.881 | O47: 277764.065
B48: 이행률(%) | C48: =C47/C46*100 -> 155.1788023 | D48: =D47/D46*100 -> 143.9422092 | E48: =E47/E46*100 -> 149.577205 | F48: =F47/F46*100 -> 177.9618987 | G48: =G47/G46*100 -> 177.3669426 | H48: =H47/H46*100 -> 159.9369485 | I48: =I47/I46*100 -> 159.8541562 | J48: =J47/J46*100 -> 153.3178164 | K48: =K47/K46*100 -> 155.1110659 | L48: =L47/L46*100 -> 148.195778 | M48: =M47/M46*100 -> 148.0528496 | N48: =N47/N46*100 -> 166.6307105 | O48: 157.5316804
B50: 차수 | C50: 9 | D50: 9 | E50: 9 | F50: 9 | G50: 9 | H50: 9 | I50: 9 | J50: 9 | K50: 9 | L50: 9 | M50: 9 | N50: 9 | O50: 9
B51: 연 | C51: 2022 | D51: 2023 | E51: 2023 | F51: 2023 | G51: 2023 | H51: 2023 | I51: 2023 | J51: 2023 | K51: 2023 | L51: 2023 | M51: 2023 | N51: 2023 | O51: 합 계
B52: 월 | C52: 12 | D52: 1 | E52: 2 | F52: 3 | G52: 4 | H52: 5 | I52: 6 | J52: 7 | K52: 8 | L52: 9 | M52: 10 | N52: 11
B53: 입찰량(MWh) | C53: 81310.9 | D53: 68484.2 | E53: 64740.1 | F53: 80889.7 | G53: 79244.7 | H53: 81343.2 | I53: 104981.4 | J53: 110246.3 | K53: 122059.1 | L53: 65229.2 | M53: 89740.3 | N53: 110113.7 | O53: =SUM(C53:N53) -> 1058382.8
B54: 낙찰량(MWh) | C54: 29013.756 | D54: 23218.698 | E54: 21683.2 | F54: 10638.8 | G54: 4572 | H54: 5171.94 | I54: 9686.558 | J54: 14988.017 | K54: 24546 | L54: 8716.648 | M54: 4244 | N54: 12584.552 | O54: =SUM(C54:N54) -> 169064.169
B55: 감축량(MWh) | C55: 43360.948 | D55: 34433.662 | E55: 32172.011 | F55: 17679.377 | G55: 7757.247 | H55: 8709.178 | I55: 16532.455 | J55: 21663.011 | K55: 36476.164 | L55: 13736.435 | M55: 5874.826 | N55: 19541.876 | O55: 257937.19
B56: 이행률(%) | C56: =C55/C54*100 -> 149.4496197 | D56: 148.3014336 | E56: 148.3729846 | F56: 166.1783002 | G56: 169.6685696 | H56: 168.3928661 | I56: 170.6741961 | J56: 144.535538 | K56: 148.6032918 | L56: 157.5885019 | M56: 138.4266258 | N56: 155.2846379 | O56: =O55/O54*100 -> 152.5676266
B58: 차수 | C58: 10 | D58: 10 | E58: 10 | F58: 10 | G58: 10 | H58: 10 | I58: 10 | J58: 10 | K58: 10 | L58: 10 | M58: 10 | N58: 10 | O58: 10
B59: 연 | C59: 2023 | D59: 2024 | E59: 2024 | F59: 2024 | G59: 2024 | H59: 2024 | I59: 2024 | J59: 2024 | K59: 2024 | L59: 2024 | M59: 2024 | N59: 2024 | O59: 합 계
B60: 월 | C60: 12 | D60: 1 | E60: 2 | F60: 3 | G60: 4 | H60: 5 | I60: 6 | J60: 7 | K60: 8 | L60: 9 | M60: 10 | N60: 11
B61: 입찰량(MWh) | C61: 88926.4 | D61: 70852.9 | E61: 74577.6 | F61: 85063.4 | G61: 85046.8 | H61: 83446 | I61: 92473.5 | J61: 107146.9 | K61: 95443.4 | L61: 65446.4 | O61: =SUM(C61:N61) -> 848423.3
B62: 낙찰량(MWh) | C62: 13857.723 | D62: 14371.6 | E62: 11990.1 | F62: 7788.62 | G62: 8111 | H62: 7157.666 | I62: 13516.023 | J62: 21510.095 | K62: 35383.989 | L62: 18168.467 | O62: =SUM(C62:N62) -> 151855.283
B63: 감축량(MWh) | C63: 19953.124 | D63: 23384.041 | E63: 18766.01 | F63: 11996.709 | G63: 13133.05 | H63: 11419.835 | I63: 19276.163 | J63: 30826.818 | K63: 51860.84 | L63: 27842.901 | O63: 228459.491
B64: 이행률(%) | C64: =C63/C62*100 -> 143.9855884 | D64: =D63/D62*100 -> 162.710074 | E64: 156.5125395 | F64: 154.0286854 | G64: 161.9165331 | H64: 159.546911 | I64: 142.6171219 | J64: =J63/J62*100 -> 143.3132583 | K64: 146.565838 | L64: 153.2484882 | O64: =O63/O62*100 -> 150.4455337
B66: ㅇ 국민DR 감축실적
B67: 연 | C67: 2020 | D67: 2021 | E67: 2021 | F67: 2021 | G67: 2021 | H67: 2021 | I67: 2021 | J67: 2021 | K67: 2021 | L67: 2021 | M67: 2021 | N67: 2021 | O67: 합 계
B68: 월 | C68: 12 | D68: 1 | E68: 2 | F68: 3 | G68: 4 | H68: 5 | I68: 6 | J68: 7 | K68: 8 | L68: 9 | M68: 10 | N68: 11
B69: 감축량(kWh) | C69: 290 | D69: 153 | E69: 99 | F69: 174 | G69: 104 | H69: 87 | I69: 26 | J69: 11 | K69: 114 | L69: 55 | M69: 75 | N69: 109 | O69: =SUM(C69:N69) -> 1297
B71: 연 | C71: =C67+1 -> 2021 | D71: =D67+1 -> 2022 | E71: 2022 | F71: 2022 | G71: 2022 | H71: 2022 | I71: 2022 | J71: 2022 | K71: 2022 | L71: 2022 | M71: 2022 | N71: 2022 | O71: 합 계
B72: 월 | C72: 12 | D72: 1 | E72: 2 | F72: 3 | G72: 4 | H72: 5 | I72: 6 | J72: 7 | K72: 8 | L72: 9 | M72: 10 | N72: 11
B73: 감축량(kWh) | C73: 523 | D73: 361 | E73: 230 | F73: 680 | G73: 989 | H73: 431 | I73: 31 | J73: 410 | K73: 589 | L73: 488 | M73: 144 | N73: 1171 | O73: =SUM(C73:N73) -> 6047
B75: 연 | C75: =C71+1 -> 2022 | D75: =D71+1 -> 2023 | E75: 2023 | F75: 2023 | G75: 2023 | H75: 2023 | I75: 2023 | J75: 2023 | K75: 2023 | L75: 2023 | M75: 2023 | N75: 2023 | O75: 합 계
B76: 월 | C76: 12 | D76: 1 | E76: 2 | F76: 3 | G76: 4 | H76: 5 | I76: 6 | J76: 7 | K76: 8 | L76: 9 | M76: 10 | N76: 11
B77: 감축량(kWh) | C77: 953 | D77: 3376 | E77: 3745 | F77: 6199 | G77: 2868 | H77: 1152 | I77: 349 | J77: 437 | K77: 2064 | L77: 461 | M77: 360 | N77: 1373 | O77: =SUM(C77:N77) -> 23337
B79: 연 | C79: =C75+1 -> 2023 | D79: =D75+1 -> 2024 | E79: 2024 | F79: 2024 | G79: 2024 | H79: 2024 | I79: 2024 | J79: 2024 | K79: 2024 | L79: 2024 | M79: 2024 | N79: 2024 | O79: 합 계
B80: 월 | C80: 12 | D80: 1 | E80: 2 | F80: 3 | G80: 4 | H80: 5 | I80: 6 | J80: 7 | K80: 8 | L80: 9 | M80: 10 | N80: 11
B81: 감축량(kWh) | C81: 5848 | D81: 11342 | E81: 5633 | F81: 5458 | G81: 8115 | H81: 1313 | I81: 1806 | J81: 6361 | K81: 56038 | L81: 2381 | O81: =SUM(C81:N81) -> 104295
B83: ㅇ 주파수DR 감축실적
B84: 연 | C84: 2020 | D84: 2021 | E84: 2021 | F84: 2021 | G84: 2021 | H84: 2021 | I84: 2021 | J84: 2021 | K84: 2021 | L84: 2021 | M84: 2021 | N84: 2021 | O84: 합 계
B85: 월 | C85: 12 | D85: 1 | E85: 2 | F85: 3 | G85: 4 | H85: 5 | I85: 6 | J85: 7 | K85: 8 | L85: 9 | M85: 10 | N85: 11
B86: 감축량(MWh) | C86: 0 | D86: 0 | E86: 0 | F86: 138.306 | G86: 118.703 | H86: 314.988 | I86: 0 | J86: 0 | K86: 0 | L86: 0 | M86: 0 | N86: 0 | O86: =SUM(C86:N86) -> 571.997
B88: 연 | C88: =C84+1 -> 2021 | D88: 2022 | E88: 2022 | F88: 2022 | G88: 2022 | H88: 2022 | I88: 2022 | J88: 2022 | K88: 2022 | L88: 2022 | M88: 2022 | N88: 2022 | O88: 합 계
B89: 월 | C89: 12 | D89: 1 | E89: 2 | F89: 3 | G89: 4 | H89: 5 | I89: 6 | J89: 7 | K89: 8 | L89: 9 | M89: 10 | N89: 11
B90: 감축량(MWh) | C90: 0 | D90: 0 | E90: 0 | F90: 0 | G90: 258.222 | H90: 0 | I90: 0 | J90: 0 | K90: 0 | L90: 139.656 | M90: 0 | N90: 0 | O90: =SUM(C90:N90) -> 397.878
B92: 연 | C92: =C88+1 -> 2022 | D92: =D88+1 -> 2023 | E92: 2023 | F92: 2023 | G92: 2023 | H92: 2023 | I92: 2023 | J92: 2023 | K92: 2023 | L92: 2023 | M92: 2023 | N92: 2023 | O92: 합 계
B93: 월 | C93: 12 | D93: 1 | E93: 2 | F93: 3 | G93: 4 | H93: 5 | I93: 6 | J93: 7 | K93: 8 | L93: 9 | M93: 10 | N93: 11
B94: 감축량(MWh) | C94: 0 | D94: 0 | E94: 0 | F94: 0 | G94: 0 | H94: 0 | I94: 0 | J94: 0 | K94: - | L94: 0 | M94: 0 | N94: 0 | O94: =SUM(C94:N94) -> 0
B96: 연 | C96: =C92+1 -> 2023 | D96: =D92+1 -> 2024 | E96: 2024 | F96: 2024 | G96: 2024 | H96: 2024 | I96: 2024 | J96: 2024 | K96: 2024 | L96: 2024 | M96: 2024 | N96: 2024 | O96: 합 계
B97: 월 | C97: 12 | D97: 1 | E97: 2 | F97: 3 | G97: 4 | H97: 5 | I97: 6 | J97: 7 | K97: 8 | L97: 9 | M97: 10 | N97: 11
B98: 감축량(MWh) | C98: 0 | D98: 0 | E98: 0 | F98: 162.484 | G98: 0 | H98: 0 | I98: 0 | J98: 3.814 | K98: 0 | L98: 0 | O98: =SUM(C98:N98) -> 166.298
B100: ㅇ 육지 플러스DR 증대실적
B101: 연 | C101: 2023 | D101: 2024 | E101: 2024 | F101: 2024 | G101: 2024 | H101: 2024 | I101: 2024 | J101: 2024 | K101: 2024 | L101: 2024 | M101: 2024 | N101: 2024 | O101: 합 계
B102: 월 | C102: 12 | D102: 1 | E102: 2 | F102: 3 | G102: 4 | H102: 5 | I102: 6 | J102: 7 | K102: 8 | L102: 9 | M102: 10 | N102: 11
B103: 증대량(MWh) | G103: 2124.948 | H103: 2926.722 | I103: 203.051 | J103: 0 | K103: 0 | L103: 0 | O103: =SUM(C103:N103) -> 5254.721
B105: ㅇ 제주 플러스DR 증대실적
B106: 연 | C106: 2020 | D106: 2021 | E106: 2021 | F106: 2021 | G106: 2021 | H106: 2021 | I106: 2021 | J106: 2021 | K106: 2021 | L106: 2021 | M106: 2021 | N106: 2021 | O106: 합 계
B107: 월 | C107: 12 | D107: 1 | E107: 2 | F107: 3 | G107: 4 | H107: 5 | I107: 6 | J107: 7 | K107: 8 | L107: 9 | M107: 10 | N107: 11
B108: 증대량(kWh) | G108: 3215 | H108: 15796 | I108: 0 | J108: 0 | K108: 0 | L108: 0 | M108: 467 | N108: 0 | O108: =SUM(C108:N108) -> 19478
B110: 연 | C110: 2021 | D110: 2022 | E110: 2022 | F110: 2022 | G110: 2022 | H110: 2022 | I110: 2022 | J110: 2022 | K110: 2022 | L110: 2022 | M110: 2022 | N110: 2022 | O110: 합 계
B111: 월 | C111: 12 | D111: 1 | E111: 2 | F111: 3 | G111: 4 | H111: 5 | I111: 6 | J111: 7 | K111: 8 | L111: 9 | M111: 10 | N111: 11
B112: 증대량(kWh) | C112: 0 | D112: 0 | E112: 0 | F112: 4873 | G112: 34396 | H112: 48342 | I112: 0 | J112: 0 | K112: 0 | L112: 0 | M112: 40018 | N112: 28291 | O112: =SUM(C112:N112) -> 155920
B114: 연 | C114: =C110+1 -> 2022 | D114: 2023 | E114: 2023 | F114: 2023 | G114: 2023 | H114: 2023 | I114: 2023 | J114: 2023 | K114: 2023 | L114: 2023 | M114: 2023 | N114: 2023 | O114: 합 계
B115: 월 | C115: 12 | D115: 1 | E115: 2 | F115: 3 | G115: 4 | H115: 5 | I115: 6 | J115: 7 | K115: 8 | L115: 9 | M115: 10 | N115: 11
B116: 하루전시장 증대량(kWh) | C116: 0 | D116: 6565 | E116: 26296 | F116: 31532 | G116: 58780 | H116: 25537 | I116: 0 | J116: 0 | K116: 0 | L116: 0 | M116: 14240 | N116: 0 | O116: =SUM(C116:N116) -> 162950
B117: 실시간시장 증대량(kWh) | C117: 0 | D117: 6014 | E117: 37894 | F117: 116194 | G117: 74919 | H117: 66517 | I117: 9187 | J117: 0 | K117: 0 | L117: 0 | M117: 49192 | N117: 0 | O117: =SUM(C117:N117) -> 359917
B119: 연 | C119: =C114+1 -> 2023 | D119: =D114+1 -> 2024 | E119: 2024 | F119: 2024 | G119: 2024 | H119: 2024 | I119: 2024 | J119: 2024 | K119: 2024 | L119: 2024 | M119: 2024 | N119: 2024 | O119: 합 계
B120: 월 | C120: 12 | D120: 1 | E120: 2 | F120: 3 | G120: 4 | H120: 5 | I120: 6 | J120: 7 | K120: 8 | L120: 9 | M120: 10 | N120: 11
B121: 하루전시장 증대량(kWh) | C121: 0 | D121: 0 | E121: 0 | F121: 0 | G121: 0 | H121: 0 | I121: 0 | J121: 0 | K121: 0 | L121: 0 | O121: =SUM(C121:N121) -> 0
B122: 실시간시장 증대량(kWh) | C122: 0 | D122: 0 | E122: 0 | F122: 0 | G122: 0 | H122: 0 | I122: 0 | J122: 0 | K122: 0 | L122: 0 | O122: =SUM(C122:N122) -> 0

Sheet 월별 정산금 지급 실적
B2: ㅇ 정산금 지급 실적(백만원)
B3: 차수 | C3: 7 | D3: 7 | E3: 7 | F3: 7 | G3: 7 | H3: 7 | I3: 7 | J3: 7 | K3: 7 | L3: 7 | M3: 7 | N3: 7 | O3: 7
B4: 연 | C4: 2020 | D4: 2021 | E4: 2021 | F4: 2021 | G4: 2021 | H4: 2021 | I4: 2021 | J4: 2021 | K4: 2021 | L4: 2021 | M4: 2021 | N4: 2021 | O4: 합계
B5: 월 | C5: 12 | D5: 1 | E5: 2 | F5: 3 | G5: 4 | H5: 5 | I5: 6 | J5: 7 | K5: 8 | L5: 9 | M5: 10 | N5: 11
B6: 실적정산금 | C6: 2784.355463 | D6: 1142.43547 | E6: 941.515301 | F6: 1095.922435 | G6: 2081.810155 | H6: 2498.335704 | I6: 3347.990187 | J6: 3186.965553 | K6: 2641.880696 | L6: 3505.934769 | M6: 4375.483989 | N6: 1483.145393 | O6: =SUM(C6:N6) -> 29085.77512
B7: 기본정산금 | C7: 19870.43902 | D7: 22121.27028 | E7: 25662.72903 | F7: 3973.902404 | G7: 2340.713022 | H7: 15846.03114 | I7: 4809.96723 | J7: 18647.41548 | K7: 54852.2748 | L7: 7242.229227 | M7: 2235.320741 | N7: 19226.29421 | O7: =SUM(C7:N7) -> 196828.5866
B8: 합 계 | C8: 22654.79449 | D8: 23263.70575 | E8: 26604.24433 | F8: 5069.824839 | G8: 4422.523177 | H8: 18344.36685 | I8: 8157.957417 | J8: 21834.38104 | K8: 57494.15549 | L8: 10748.164 | M8: 6610.80473 | N8: 20709.4396 | O8: =SUM(O6:O7) -> 225914.3617
B10: 차수 | C10: 8 | D10: 8 | E10: 8 | F10: 8 | G10: 8 | H10: 8 | I10: 8 | J10: 8 | K10: 8 | L10: 8 | M10: 8 | N10: 8 | O10: 8
B11: 연 | C11: 2021 | D11: 2022 | E11: 2022 | F11: 2022 | G11: 2022 | H11: 2022 | I11: 2022 | J11: 2022 | K11: 2022 | L11: 2022 | M11: 2022 | N11: 2022 | O11: 합계
B12: 월 | C12: 12 | D12: 1 | E12: 2 | F12: 3 | G12: 4 | H12: 5 | I12: 6 | J12: 7 | K12: 8 | L12: 9 | M12: 10 | N12: 11
B13: 실적정산금 | C13: 3617.452594 | D13: 1072.613271 | E13: 2451.64611 | F13: 2489.953869 | G13: 1155.672204 | H13: 3851.597247 | I13: 3629.638124 | J13: 1400.173372 | K13: 9399.752738 | L13: 2397.523784 | M13: 2203.438137 | N13: 1362.309827 | O13: =SUM(C13:N13) -> 35031.77128
B14: 기본정산금 | C14: 24180.57479 | D14: 20924.32324 | E14: 20043.79576 | F14: 3403.307735 | G14: 2155.491933 | H14: 12695.76373 | I14: 4544.973612 | J14: 21344.48762 | K14: 60532.67372 | L14: 9305.066576 | M14: 2389.289592 | N14: 25228.30327 | O14: =SUM(C14:N14) -> 206748.0516
B15: 합 계 | C15: 27798.02738 | D15: 21996.93652 | E15: 22495.44187 | F15: 5893.261604 | G15: 3311.164137 | H15: 16547.36097 | I15: 8174.611736 | J15: 22744.661 | K15: 69932.42646 | L15: 11702.59036 | M15: 4592.727729 | N15: 26590.6131 | O15: =SUM(O13:O14) -> 241779.8229
B17: 차수 | C17: 9 | D17: 9 | E17: 9 | F17: 9 | G17: 9 | H17: 9 | I17: 9 | J17: 9 | K17: 9 | L17: 9 | M17: 9 | N17: 9 | O17: 9
B18: 연 | C18: 2022 | D18: 2023 | E18: 2023 | F18: 2023 | G18: 2023 | H18: 2023 | I18: 2023 | J18: 2023 | K18: 2023 | L18: 2023 | M18: 2023 | N18: 2023 | O18: 합계
B19: 월 | C19: 12 | D19: 1 | E19: 2 | F19: 3 | G19: 4 | H19: 5 | I19: 6 | J19: 7 | K19: 8 | L19: 9 | M19: 10 | N19: 11
B20: 실적정산금 | C20: 9782.968658 | D20: 6283.224091 | E20: 5821.060162 | F20: 2493.914277 | G20: 870.72086 | H20: 881.602435 | I20: 2480.037771 | J20: 2534.383305 | K20: 4066.928528 | L20: 1408.612771 | M20: 719.499436 | N20: 1798.364775 | O20: =SUM(C20:N20) -> 39141.31707
B21: 기본정산금 | C21: 19078.11342 | D21: 13022.63509 | E21: 29490.07146 | F21: 5360.235137 | G21: 1707.513229 | H21: 11023.37978 | I21: 7975.807468 | J21: 18214.83258 | K21: 54776.83066 | L21: 10643.19838 | M21: 3164.820107 | N21: 34467.75796 | O21: =SUM(C21:N21) -> 208925.1953
B22: 합 계 | C22: 28861.08208 | D22: 19305.85918 | E22: 35311.13162 | F22: 7854.149414 | G22: 2578.234089 | H22: 11904.98222 | I22: 10455.84524 | J22: 20749.10234 | K22: 58843.75918 | L22: 12051.81116 | M22: 3884.319543 | N22: 36266.12273 | O22: =SUM(O20:O21) -> 248066.5123
B24: 차수 | C24: 10 | D24: 10 | E24: 10 | F24: 10 | G24: 10 | H24: 10 | I24: 10 | J24: 10 | K24: 10 | L24: 10 | M24: 10 | N24: 10 | O24: 10
B25: 연 | C25: 2023 | D25: 2024 | E25: 2024 | F25: 2024 | G25: 2024 | H25: 2024 | I25: 2024 | J25: 2024 | K25: 2024 | L25: 2024 | M25: 2024 | N25: 2024 | O25: 합계
B26: 월 | C26: 12 | D26: 1 | E26: 2 | F26: 3 | G26: 4 | H26: 5 | I26: 6 | J26: 7 | K26: 8 | L26: 9 | M26: 10 | N26: 11
B27: 실적정산금 | C27: 3058.177407 | D27: 3460.088079 | E27: 1893.542498 | F27: 1321.433804 | G27: 1268.612814 | H27: 986.078359 | I27: 2592.842908 | J27: 3164.007589 | K27: 6775.060787 | L27: 5123.906287 | O27: =SUM(C27:N27) -> 29643.75053
B28: 기본정산금 | C28: 17482.8776 | D28: 13417.26521 | E28: 20143.53194 | F28: 6282.245225 | G28: 3038.413685 | H28: 13362.0037 | I28: 9229.138501 | J28: 15660.32231 | K28: 59690.0435 | L28: 9099.255835 | O28: =SUM(C28:N28) -> 167405.0975
B29: 합 계 | C29: =SUM(C27:C28) -> 20541.05501 | D29: 16877 | E29: 22037 | F29: 7603 | G29: 7603 | H29: 7603 | I29: =SUM(I27:I28) -> 11821.98141 | J29: =SUM(J27:J28) -> 18824.3299 | K29: =SUM(K27:K28) -> 66465.10428 | L29: =SUM(L27:L28) -> 14223.16212 | O29: =SUM(O27:O28) -> 197048.848
B31: ㅇ 실적정산금 지급 실적(백만원)
B32: 차수 | C32: 7 | D32: 7 | E32: 7 | F32: 7 | G32: 7 | H32: 7 | I32: 7 | J32: 7 | K32: 7 | L32: 7 | M32: 7 | N32: 7 | O32: 7
B33: 연 | C33: 2020 | D33: 2021 | E33: 2021 | F33: 2021 | G33: 2021 | H33: 2021 | I33: 2021 | J33: 2021 | K33: 2021 | L33: 2021 | M33: 2021 | N33: 2021 | O33: 합계
B34: 월 | C34: 12 | D34: 1 | E34: 2 | F34: 3 | G34: 4 | H34: 5 | I34: 6 | J34: 7 | K34: 8 | L34: 9 | M34: 10 | N34: 11
B35: 신뢰성DR 정산금 | C35: 377.977399 | D35: 0 | E35: 0 | F35: 0 | G35: 0 | H35: 0 | I35: 474.428774 | J35: 0 | K35: 0 | L35: 0 | M35: 0 | N35: 0 | O35: =SUM(C35:N35) -> 852.406173
B36: 자발적DR 정산금 | C36: 2422.965358 | D36: 1158.627653 | E36: 954.065642 | F36: 1105.433972 | G36: 2100.581126 | H36: 2521.589198 | I36: 2900.247883 | J36: 3209.246981 | K36: 2676.908295 | L36: 3530.528151 | M36: 4392.481254 | N36: 1492.145185 | O36: =SUM(C36:N36) -> 28464.8207
B37: 위약금 | C37: 16.587294 | D37: 16.192183 | E37: 12.550341 | F37: 9.511537 | G37: 18.770971 | H37: 23.253494 | I37: 26.68647 | J37: 22.281428 | K37: 35.027599 | L37: 24.593382 | M37: 16.997265 | N37: 8.999792 | O37: 231.451756
B38: 합 계 | C38: =SUM(C35:C36)-C37 -> 2784.355463 | D38: =SUM(D35:D36)-D37 -> 1142.43547 | E38: 941.515301 | F38: 1095.922435 | G38: 2081.810155 | H38: 2498.335704 | I38: 3347.990187 | J38: 3186.965553 | K38: 2641.880696 | L38: 3505.934769 | M38: 4375.483989 | N38: 1483.145393 | O38: 29085.77512
B40: 차수 | C40: 8 | D40: 8 | E40: 8 | F40: 8 | G40: 8 | H40: 8 | I40: 8 | J40: 8 | K40: 8 | L40: 8 | M40: 8 | N40: 8 | O40: 8
B41: 연 | C41: 2021 | D41: 2022 | E41: 2022 | F41: 2022 | G41: 2022 | H41: 2022 | I41: 2022 | J41: 2022 | K41: 2022 | L41: 2022 | M41: 2022 | N41: 2022 | O41: 합계
B42: 월 | C42: 12 | D42: 1 | E42: 2 | F42: 3 | G42: 4 | H42: 5 | I42: 6 | J42: 7 | K42: 8 | L42: 9 | M42: 10 | N42: 11
B43: 신뢰성DR 정산금 | C43: 796.32736 | D43: 0 | E43: 0 | F43: 0 | G43: 0 | H43: 0 | I43: 774.105219 | J43: 0 | K43: 0 | L43: 0 | M43: 0 | N43: 0 | O43: =SUM(C43:N43) -> 1570.432579
B44: 자발적DR 정산금 | C44: 2835.207834 | D44: 1084.55356 | E44: 2456.793384 | F44: 2502.508436 | G44: 1158.468953 | H44: 3870.480626 | I44: 2876.543882 | J44: 1401.361775 | K44: 9440.378368 | L44: 2413.724882 | M44: 2229.439103 | N44: 1370.425871 | O44: =SUM(C44:N44) -> 33639.88667
B45: 위약금 | C45: 14.0826 | D45: 11.940289 | E45: 5.147274 | F45: 12.554567 | G45: 2.796749 | H45: 18.883379 | I45: 21.010977 | J45: 1.188403 | K45: 40.62563 | L45: 16.201098 | M45: 26.000966 | N45: 8.116044 | O45: 178.547976
B46: 합 계 | C46: =SUM(C43:C44)-C45 -> 3617.452594 | D46: =SUM(D43:D44)-D45 -> 1072.613271 | E46: =SUM(E43:E44)-E45 -> 2451.64611 | F46: =SUM(F43:F44)-F45 -> 2489.953869 | G46: =SUM(G43:G44)-G45 -> 1155.672204 | H46: =SUM(H43:H44)-H45 -> 3851.597247 | I46: =SUM(I43:I44)-I45 -> 3629.638124 | J46: =SUM(J43:J44)-J45 -> 1400.173372 | K46: =SUM(K43:K44)-K45 -> 9399.752738 | L46: =SUM(L43:L44)-L45 -> 2397.523784 | M46: =SUM(M43:M44)-M45 -> 2203.438137 | N46: =SUM(N43:N44)-N45 -> 1362.309827 | O46: =SUM(O43:O44)-O45 -> 35031.77128
B48: 차수 | C48: 9 | D48: 9 | E48: 9 | F48: 9 | G48: 9 | H48: 9 | I48: 9 | J48: 9 | K48: 9 | L48: 9 | M48: 9 | N48: 9 | O48: 9
B49: 연 | C49: 2022 | D49: 2023 | E49: 2023 | F49: 2023 | G49: 2023 | H49: 2023 | I49: 2023 | J49: 2023 | K49: 2023 | L49: 2023 | M49: 2023 | N49: 2023 | O49: 합계
B50: 월 | C50: 12 | D50: 1 | E50: 2 | F50: 3 | G50: 4 | H50: 5 | I50: 6 | J50: 7 | K50: 8 | L50: 9 | M50: 10 | N50: 11
B51: 신뢰성DR 정산금 | C51: 1522.064798 | D51: 0 | E51: 0 | F51: 0 | G51: 0 | H51: 0 | I51: 914.26698 | J51: 0 | K51: 0 | L51: 0 | M51: 0 | N51: 0 | O51: =SUM(C51:N51) -> 2436.331778
B52: 자발적DR 정산금 | C52: 8322.932966 | D52: 6320.839568 | E52: 5858.222656 | F52: 2516.574908 | G52: 872.104618 | H52: 885.537599 | I52: 1574.572164 | J52: 2563.090701 | K52: 4080.182076 | L52: 1412.413116 | M52: 723.087901 | N52: 1834.699074 | O52: =SUM(C52:N52) -> 36964.25735
B53: 위약금 | C53: 62.029106 | D53: 37.615477 | E53: 37.162494 | F53: 22.660631 | G53: 1.383758 | H53: 3.935164 | I53: 8.801373 | J53: 28.707396 | K53: 13.253548 | L53: 3.800345 | M53: 3.588465 | N53: 36.334299 | O53: 259.272056
B54: 합 계 | C54: =SUM(C51:C52)-C53 -> 9782.968658 | D54: 6283.224091 | E54: 5821.060162 | F54: 2493.914277 | G54: 870.72086 | H54: 881.602435 | I54: 2480.037771 | J54: 2534.383305 | K54: 4066.928528 | L54: 1408.612771 | M54: 719.499436 | N54: 1798.364775 | O54: =SUM(O51:O52)-O53 -> 39141.31707
B56: 차수 | C56: 10 | D56: 10 | E56: 10 | F56: 10 | G56: 10 | H56: 10 | I56: 10 | J56: 10 | K56: 10 | L56: 10 | M56: 10 | N56: 10 | O56: 10
B57: 연 | C57: 2023 | D57: 2024 | E57: 2024 | F57: 2024 | G57: 2024 | H57: 2024 | I57: 2024 | J57: 2024 | K57: 2024 | L57: 2024 | M57: 2024 | N57: 2024 | O57: 합계
B58: 월 | C58: 12 | D58: 1 | E58: 2 | F58: 3 | G58: 4 | H58: 5 | I58: 6 | J58: 7 | K58: 8 | L58: 9 | M58: 10 | N58: 11
B59: 신뢰성DR 정산금 | C59: 779.780127 | D59: 862.692279 | E59: 0 | F59: 0 | G59: 0 | H59: 0 | I59: 704.179728 | J59: 0 | K59: 1334.400189 | L59: 2466.82028 | O59: =SUM(C59:N59) -> 6147.872603
B60: 자발적DR 정산금 | C60: 2296.942589 | D60: 2609.617545 | E60: 1920.831028 | F60: 1331.419173 | G60: 1275.845077 | H60: 1015.432782 | I60: 1903.571924 | J60: 3175.299459 | K60: 5514.924058 | L60: 2746.197807 | O60: =SUM(C60:N60) -> 23790.08144
B61: 위약금 | C61: 18.545309 | D61: 12.221745 | E61: 27.28853 | F61: 9.985369 | G61: 7.232263 | H61: 29.354423 | I61: 14.908744 | J61: 11.29187 | K61: 74.26346 | L61: 34.164123 | O61: 239.255836
B62: 합 계 | C62: =C59+C60-C61 -> 3058.177407 | D62: 3460 | E62: 1894 | F62: 1321 | G62: =G59+G60-G61 -> 1268.612814 | H62: =H59+H60-H61 -> 986.078359 | I62: =I59+I60-I61 -> 2592.842908 | J62: =J59+J60-J61 -> 3164.007589 | K62: =K59+K60-K61 -> 6775.060787 | L62: 3460 | O62: =SUM(O59:O60)-O61 -> 29698.69821
B64: ㅇ 기본정산금 지급 실적(백만원)
B65: 차수 | C65: 7 | D65: 7 | E65: 7 | F65: 7 | G65: 7 | H65: 7 | I65: 7 | J65: 7 | K65: 7 | L65: 7 | M65: 7 | N65: 7 | O65: 7
B66: 연 | C66: 2020 | D66: 2021 | E66: 2021 | F66: 2021 | G66: 2021 | H66: 2021 | I66: 2021 | J66: 2021 | K66: 2021 | L66: 2021 | M66: 2021 | N66: 2021 | O66: 합계
B67: 월 | C67: 12 | D67: 1 | E67: 2 | F67: 3 | G67: 4 | H67: 5 | I67: 6 | J67: 7 | K67: 8 | L67: 9 | M67: 10 | N67: 11
B68: 고정기본정산금 | C68: 19926.43598 | D68: 22121.27028 | E68: 13332.19603 | F68: 3973.902404 | G68: 2340.713022 | H68: 1963.235942 | I68: 4850.505947 | J68: 18647.41548 | K68: 23190.4013 | L68: 7242.229227 | M68: 2235.320741 | N68: 8058.155137 | O68: =SUM(C68:N68) -> 127881.7815
B69: 차등기본정산금 | C69: 0 | D69: 0 | E69: 12330.53299 | F69: 0 | G69: 0 | H69: 13882.7952 | I69: 0 | J69: 0 | K69: 31661.87349 | L69: 0 | M69: 0 | N69: 11168.13907 | O69: =SUM(C69:N69) -> 69043.34075
B70: 위약금 | C70: 55.996952 | D70: 0 | E70: 0 | F70: 0 | G70: 0 | H70: 0 | I70: 40.538717 | J70: 0 | K70: 0 | L70: 0 | M70: 0 | N70: 0 | O70: 96.535669
B71: 합 계 | C71: =SUM(C68:C69)-C70 -> 19870.43902 | D71: =SUM(D68:D69)-D70 -> 22121.27028 | E71: =SUM(E68:E69)-E70 -> 25662.72902 | F71: =SUM(F68:F69)-F70 -> 3973.902404 | G71: =SUM(G68:G69)-G70 -> 2340.713022 | H71: =SUM(H68:H69)-H70 -> 15846.03114 | I71: =SUM(I68:I69)-I70 -> 4809.96723 | J71: =SUM(J68:J69)-J70 -> 18647.41548 | K71: =SUM(K68:K69)-K70 -> 54852.2748 | L71: =SUM(L68:L69)-L70 -> 7242.229227 | M71: =SUM(M68:M69)-M70 -> 2235.320741 | N71: =SUM(N68:N69)-N70 -> 19226.29421 | O71: =SUM(O68:O69)-O70 -> 196828.5866
B73: 차수 | C73: 8 | D73: 8 | E73: 8 | F73: 8 | G73: 8 | H73: 8 | I73: 8 | J73: 8 | K73: 8 | L73: 8 | M73: 8 | N73: 8 | O73: 8
B74: 연 | C74: 2021 | D74: 2022 | E74: 2022 | F74: 2022 | G74: 2022 | H74: 2022 | I74: 2022 | J74: 2022 | K74: 2022 | L74: 2022 | M74: 2022 | N74: 2022 | O74: 합계
B75: 월 | C75: 12 | D75: 1 | E75: 2 | F75: 3 | G75: 4 | H75: 5 | I75: 6 | J75: 7 | K75: 8 | L75: 9 | M75: 10 | N75: 11
B76: 고정기본정산금 | C76: 24205.53702 | D76: 20924.32324 | E76: 12390.80277 | F76: 3403.307735 | G76: 2155.491933 | H76: 2092.432326 | I76: 4636.003382 | J76: 21344.48762 | K76: 27136.4966 | L76: 9305.066576 | M76: 2389.289592 | N76: 6101.9142 | O76: =SUM(C76:N76) -> 136085.153
B77: 차등기본정산금 | C77: 0 | D77: 0 | E77: 7652.99299 | F77: 0 | G77: 0 | H77: 10603.3314 | I77: 0 | J77: 0 | K77: 33396.17711 | L77: 0 | M77: 0 | N77: 19126.38907 | O77: =SUM(C77:N77) -> 70778.89058
B78: 위약금 | C78: 24.962233 | D78: 0 | E78: 0 | F78: 0 | G78: 0 | H78: 0 | I78: 91.02977 | J78: 0 | K78: 0 | L78: 0 | M78: 0 | N78: 0 | O78: 115.992003
B79: 합 계 | C79: =SUM(C76:C77)-C78 -> 24180.57479 | D79: =SUM(D76:D77)-D78 -> 20924.32324 | E79: =SUM(E76:E77)-E78 -> 20043.79576 | F79: =SUM(F76:F77)-F78 -> 3403.307735 | G79: =SUM(G76:G77)-G78 -> 2155.491933 | H79: =SUM(H76:H77)-H78 -> 12695.76373 | I79: =SUM(I76:I77)-I78 -> 4544.973612 | J79: =SUM(J76:J77)-J78 -> 21344.48762 | K79: =SUM(K76:K77)-K78 -> 60532.67372 | L79: =SUM(L76:L77)-L78 -> 9305.066576 | M79: =SUM(M76:M77)-M78 -> 2389.289592 | N79: =SUM(N76:N77)-N78 -> 25228.30327 | O79: =SUM(O76:O77)-O78 -> 206748.0516
B81: 차수 | C81: 9 | D81: 9 | E81: 9 | F81: 9 | G81: 9 | H81: 9 | I81: 9 | J81: 9 | K81: 9 | L81: 9 | M81: 9 | N81: 9 | O81: 9
B82: 연 | C82: 2022 | D82: 2023 | E82: 2023 | F82: 2023 | G82: 2023 | H82: 2023 | I82: 2023 | J82: 2023 | K82: 2023 | L82: 2023 | M82: 2023 | N82: 2023 | O82: 합계
B83: 월 | C83: 12 | D83: 1 | E83: 2 | F83: 3 | G83: 4 | H83: 5 | I83: 6 | J83: 7 | K83: 8 | L83: 9 | M83: 10 | N83: 11
B84: 고정기본정산금 | C84: 19224.69088 | D84: 13022.63509 | E84: 10951.13879 | F84: 5360.235137 | G84: 1707.513229 | H84: 1973.03473 | I84: 8154.85554 | J84: 18215.33214 | K84: 19698.4359 | L84: 10643.19838 | M84: 3164.820107 | N84: 9410.779227 | O84: =SUM(C84:N84) -> 121526.6692
B85: 차등기본정산금 | C85: 0 | D85: 0 | E85: 18538.93267 | F85: 0 | G85: 0 | H85: 9050.345053 | I85: 0 | J85: 0 | K85: 35078.39475 | L85: 0 | M85: 0 | N85: 25056.97873 | O85: =SUM(C85:N85) -> 87724.6512
B86: 위약금 | C86: 146.577459 | D86: 0 | E86: 0 | F86: 0 | G86: 0 | H86: 0 | I86: 179.048072 | J86: 0.499566 | K86: 0 | L86: 0 | M86: 0 | N86: 0 | O86: 326.125097
B87: 합 계 | C87: =SUM(C84:C85)-C86 -> 19078.11342 | D87: =SUM(D84:D85)-D86 -> 13022.63509 | E87: =SUM(E84:E85)-E86 -> 29490.07146 | F87: =SUM(F84:F85)-F86 -> 5360.235137 | G87: =SUM(G84:G85)-G86 -> 1707.513229 | H87: =SUM(H84:H85)-H86 -> 11023.37978 | I87: =SUM(I84:I85)-I86 -> 7975.807468 | J87: =SUM(J84:J85)-J86 -> 18214.83258 | K87: 54776.83066 | L87: 10643.19838 | M87: 3164.820107 | N87: 34467.75796 | O87: =SUM(O84:O85)-O86 -> 208925.1953
B89: 차수 | C89: 10 | D89: 10 | E89: 10 | F89: 10 | G89: 10 | H89: 10 | I89: 10 | J89: 10 | K89: 10 | L89: 10 | M89: 10 | N89: 10 | O89: 10
B90: 연 | C90: 2023 | D90: 2024 | E90: 2024 | F90: 2024 | G90: 2024 | H90: 2024 | I90: 2024 | J90: 2024 | K90: 2024 | L90: 2024 | M90: 2024 | N90: 2024 | O90: 합계
B91: 월 | C91: 12 | D91: 1 | E91: 2 | F91: 3 | G91: 4 | H91: 5 | I91: 6 | J91: 7 | K91: 8 | L91: 9 | M91: 10 | N91: 11
B92: 고정기본정산금 | C92: 17528.75002 | D92: 13925.15521 | E92: 10691.6861 | F92: 6282.245225 | G92: 3038.413685 | H92: 3483.387976 | I92: 9336.807878 | J92: 15661.26038 | K92: 14451.25533 | L92: 9521.627275 | O92: =SUM(C92:N92) -> 103920.5891
B93: 차등기본정산금 | C93: 0 | D93: 0 | E93: 9451.84584 | F93: 0 | G93: 0 | H93: 9878.615729 | I93: 0 | J93: 0 | K93: 45957.75998 | L93: 0 | O93: =SUM(C93:N93) -> 65288.22155
B94: 위약금 | C94: 45.872418 | D94: 507.889995 | E94: 0 | F94: 0 | G94: 0 | H94: 0 | I94: 107.669377 | J94: 0.93807 | K94: 718.971822 | L94: 422.37144 | O94: 1803.713122
B95: 합 계 | C95: =SUM(C92:C93)-C94 -> 17482.8776 | D95: 13417.26521 | E95: 20143.53194 | F95: 6282.245225 | G95: 3038.413685 | H95: 13362.0037 | I95: 9229.138501 | J95: 15660.32231 | K95: 59690.0435 | L95: 9099.255835 | O95: =SUM(O92:O93)-O94 -> 167405.0975
B97: ㅇ 국민DR 정산금
B98: 연 | C98: 2020 | D98: 2021 | E98: 2021 | F98: 2021 | G98: 2021 | H98: 2021 | I98: 2021 | J98: 2021 | K98: 2021 | L98: 2021 | M98: 2021 | N98: 2021 | O98: 합 계
B99: 월 | C99: 12 | D99: 1 | E99: 2 | F99: 3 | G99: 4 | H99: 5 | I99: 6 | J99: 7 | K99: 8 | L99: 9 | M99: 10 | N99: 11
B100: 정산금(천원) | C100: 366.197 | D100: 190.289 | E100: 123.196 | F100: 226.768 | G100: 129.466 | H100: 108.66 | I100: 33.036 | J100: 16.737 | K100: 147.848 | L100: 72.512 | M100: 99.645 | N100: 149.629 | O100: =SUM(C100:N100) -> 1663.983
B102: 연 | C102: =C98+1 -> 2021 | D102: =D98+1 -> 2022 | E102: 2022 | F102: 2022 | G102: 2022 | H102: 2022 | I102: 2022 | J102: 2022 | K102: 2022 | L102: 2022 | M102: 2022 | N102: 2022 | O102: 합 계
B103: 월 | C103: 12 | D103: 1 | E103: 2 | F103: 3 | G103: 4 | H103: 5 | I103: 6 | J103: 7 | K103: 8 | L103: 9 | M103: 10 | N103: 11
B104: 정산금(천원) | C104: 739.076 | D104: 501.498 | E104: 331.887 | F104: 1009.205 | G104: 1468.769 | H104: 680.458 | I104: 47.032 | J104: 629.681 | K104: 944.506 | L104: 815.906 | M104: 286.183 | N104: 1964.841 | O104: =SUM(C104:N104) -> 9419.042
B106: 연 | C106: =C102+1 -> 2022 | D106: =D102+1 -> 2023 | E106: 2023 | F106: 2023 | G106: 2023 | H106: 2023 | I106: 2023 | J106: 2023 | K106: 2023 | L106: 2023 | M106: 2023 | N106: 2023 | O106: 합 계
B107: 월 | C107: 12 | D107: 1 | E107: 2 | F107: 3 | G107: 4 | H107: 5 | I107: 6 | J107: 7 | K107: 8 | L107: 9 | M107: 10 | N107: 11
B108: 정산금(천원) | C108: 1641.18 | D108: 5913.265 | E108: 6301.669 | F108: 11098.627 | G108: 4547.615 | H108: 1808.752 | I108: 532.165 | J108: 706.821 | K108: 3603.437 | L108: 737.745 | M108: 628.871 | N108: 2144.193 | O108: =SUM(C108:N108) -> 39664.34
B110: 연 | C110: 2023 | D110: =D106+1 -> 2024 | E110: 2024 | F110: 2024 | G110: 2024 | H110: 2024 | I110: 2024 | J110: 2024 | K110: 2024 | L110: 2024 | M110: 2024 | N110: 2024 | O110: 합 계
B111: 월 | C111: 12 | D111: 1 | E111: 2 | F111: 3 | G111: 4 | H111: 5 | I111: 6 | J111: 7 | K111: 8 | L111: 9 | M111: 10 | N111: 11
B112: 정산금(천원) | C112: 9358.781 | D112: 18925.743 | E112: 9194.376 | F112: 9061.965 | G112: 13297.134 | H112: 2122.236 | I112: 3014.236 | J112: 11516.995 | K112: 105382.857 | L112: 4395.342 | O112: =SUM(C112:N112) -> 186269.665
B114: ㅇ 주파수DR 정산금
B115: 연 | C115: 2020 | D115: 2021 | E115: 2021 | F115: 2021 | G115: 2021 | H115: 2021 | I115: 2021 | J115: 2021 | K115: 2021 | L115: 2021 | M115: 2021 | N115: 2021 | O115: 합 계
B116: 월 | C116: 12 | D116: 1 | E116: 2 | F116: 3 | G116: 4 | H116: 5 | I116: 6 | J116: 7 | K116: 8 | L116: 9 | M116: 10 | N116: 11
B117: 정산금(백만원) | C117: 0 | D117: 0 | E117: 0 | F117: 2335.469692 | G117: 1202.669123 | H117: 2127.58645 | I117: 0 | J117: 0 | K117: 0 | L117: 0 | M117: 0 | N117: 0 | O117: =SUM(C117:N117) -> 5665.725265
B119: 연 | C119: =C115+1 -> 2021 | D119: 2022 | E119: 2022 | F119: 2022 | G119: 2022 | H119: 2022 | I119: 2022 | J119: 2022 | K119: 2022 | L119: 2022 | M119: 2022 | N119: 2022 | O119: 합 계
B120: 월 | C120: 12 | D120: 1 | E120: 2 | F120: 3 | G120: 4 | H120: 5 | I120: 6 | J120: 7 | K120: 8 | L120: 9 | M120: 10 | N120: 11
B121: 정산금(백만원) | C121: 0 | D121: 0 | E121: 0 | F121: 0 | G121: 3233.669585 | H121: 0 | I121: 0 | J121: 0 | K121: 0 | L121: 907.371566 | M121: 0 | N121: 0 | O121: =SUM(C121:N121) -> 4141.041151
B123: 연 | C123: =C119+1 -> 2022 | D123: =D119+1 -> 2023 | E123: 2023 | F123: 2023 | G123: 2023 | H123: 2023 | I123: 2023 | J123: 2023 | K123: 2023 | L123: 2023 | M123: 2023 | N123: 2023 | O123: 합 계
B124: 월 | C124: 12 | D124: 1 | E124: 2 | F124: 3 | G124: 4 | H124: 5 | I124: 6 | J124: 7 | K124: 8 | L124: 9 | M124: 10 | N124: 11
B125: 정산금(백만원) | C125: 0 | D125: 0 | E125: 0 | F125: 0 | G125: 0 | H125: 0 | I125: 0 | J125: 0 | K125: 0 | L125: 0 | M125: 0 | N125: 0 | O125: =SUM(C125:N125) -> 0
B127: 연 | C127: =C123+1 -> 2023 | D127: =D123+1 -> 2024 | E127: 2024 | F127: 2024 | G127: 2024 | H127: 2024 | I127: 2024 | J127: 2024 | K127: 2024 | L127: 2024 | M127: 2024 | N127: 2024 | O127: 합 계
B128: 월 | C128: 12 | D128: 1 | E128: 2 | F128: 3 | G128: 4 | H128: 5 | I128: 6 | J128: 7 | K128: 8 | L128: 9 | M128: 10 | N128: 11
B129: 정산금(백만원) | C129: 0 | D129: 0 | E129: 0 | F129: 3232.742 | G129: 0 | H129: 0 | I129: 0 | J129: 15.475843 | K129: 0 | L129: 0 | O129: =SUM(C129:N129) -> 3248.217843
B131: ㅇ 육지 플러스DR 정산금
B132: 연 | C132: 2023 | D132: 2024 | E132: 2024 | F132: 2024 | G132: 2024 | H132: 2024 | I132: 2024 | J132: 2024 | K132: 2024 | L132: 2024 | M132: 2024 | N132: 2024 | O132: 합 계
B133: 월 | C133: 12 | D133: 1 | E133: 2 | F133: 3 | G133: 4 | H133: 5 | I133: 6 | J133: 7 | K133: 8 | L133: 9 | M133: 10 | N133: 11
B134: 정산금(백만원) | G134: 98.950148 | H134: 135.472931 | I134: 9.540824 | J134: 0 | K134: 0 | L134: 0 | O134: =SUM(C134:N134) -> 243.963903
B136: ㅇ 제주 플러스DR 정산금
B137: 연 | C137: 2020 | D137: 2021 | E137: 2021 | F137: 2021 | G137: 2021 | H137: 2021 | I137: 2021 | J137: 2021 | K137: 2021 | L137: 2021 | M137: 2021 | N137: 2021 | O137: 합 계
B138: 월 | C138: 12 | D138: 1 | E138: 2 | F138: 3 | G138: 4 | H138: 5 | I138: 6 | J138: 7 | K138: 8 | L138: 9 | M138: 10 | N138: 11
B139: 정산금(천원) | G139: 206.872 | H139: 552.546 | I139: 0 | J139: 0 | K139: 0 | L139: 0 | M139: 42.046 | N139: 0 | O139: =SUM(C139:N139) -> 801.464
B141: 연 | C141: 2021 | D141: 2022 | E141: 2022 | F141: 2022 | G141: 2022 | H141: 2022 | I141: 2022 | J141: 2022 | K141: 2022 | L141: 2022 | M141: 2022 | N141: 2022 | O141: 합 계
B142: 월 | C142: 12 | D142: 1 | E142: 2 | F142: 3 | G142: 4 | H142: 5 | I142: 6 | J142: 7 | K142: 8 | L142: 9 | M142: 10 | N142: 11
B143: 정산금(천원) | C143: 0 | D143: 0 | E143: 0 | F143: 735.652 | G143: 4969 | H143: 5053 | I143: 0 | J143: 0 | K143: 0 | L143: 0 | M143: 8246 | N143: 5535 | O143: =SUM(C143:N143) -> 24538.652
B145: 연 | C145: =C141+1 -> 2022 | D145: 2023 | E145: 2023 | F145: 2023 | G145: 2023 | H145: 2023 | I145: 2023 | J145: 2023 | K145: 2023 | L145: 2023 | M145: 2023 | N145: 2023 | O145: 합 계
B146: 월 | C146: 12 | D146: 1 | E146: 2 | F146: 3 | G146: 4 | H146: 5 | I146: 6 | J146: 7 | K146: 8 | L146: 9 | M146: 10 | N146: 11
B147: 하루전시장 정산금(천원) | C147: 0 | D147: 1472 | E147: 5468 | F147: 4907 | G147: 7807 | H147: 3026 | I147: 0 | J147: 0 | K147: 0 | L147: 0 | M147: 1753 | N147: 0 | O147: =SUM(C147:N147) -> 24433
B148: 실시간시장 정산금(천원) | C148: 0 | D148: 1503 | E148: 9346 | F148: 23908 | G148: 10836 | H148: 8495 | I148: 1472.881 | J148: 0 | K148: 0 | L148: 0 | M148: 6344 | N148: 0 | O148: =SUM(C148:N148) -> 61904.881
B150: 연 | C150: 2023 | D150: 2024 | E150: 2024 | F150: 2024 | G150: 2024 | H150: 2024 | I150: 2024 | J150: 2024 | K150: 2024 | L150: 2024 | M150: 2024 | N150: 2024 | O150: 합 계
B151: 월 | C151: 12 | D151: 1 | E151: 2 | F151: 3 | G151: 4 | H151: 5 | I151: 6 | J151: 7 | K151: 8 | L151: 9 | M151: 10 | N151: 11
B152: 하루전시장 정산금(천원) | C152: 0 | D152: 0 | E152: 0 | F152: 0 | G152: 0 | H152: 0 | I152: 0 | J152: 0 | K152: 0 | L152: 0 | O152: =SUM(C152:N152) -> 0
B153: 실시간시장 정산금(천원) | C153: 0 | D153: 0 | E153: 0 | F153: 0 | G153: 0 | H153: 0 | I153: 0 | J153: 0 | K153: 0 | L153: 0 | O153: =SUM(C153:N153) -> 0

Sheet 사업자별 신뢰성DR 감축이행률
B2: ㅇ 신뢰성DR 감축이행률
B3: 연 | C3: 2023 | D3: 2024 | E3: 2024 | F3: 2024 | G3: 2024 | H3: 2024 | I3: 2024 | J3: 2024 | K3: 2024 | L3: 2024 | M3: 2024 | N3: 2024
B4: 월 | C4: 12 | D4: 1 | E4: 2 | F4: 3 | G4: 4 | H4: 5 | I4: 6 | J4: 7 | K4: 8 | L4: 9 | M4: 10 | N4: 11 | O4: 평균
B5: 사업자01 | C5: 136.615635 | D5: 117.625509 | E5: - | F5: - | G5: - | H5: - | I5: 116.5245523 | J5: - | K5: 93.14226245 | L5: 81.80336137 | O5: 105.625575
B6: 사업자02 | C6: 127.6918648 | D6: 131.6895616 | E6: - | F6: - | G6: - | H6: - | I6: 78.58846755 | J6: - | K6: 104.9952899 | L6: 218.5210383 | O6: 129.5376851
B7: 사업자03 | C7: 102.9058474 | D7: 117.6585387 | E7: - | F7: - | G7: - | H7: - | I7: 109.6095789 | J7: - | K7: 108.601943 | L7: 129.2564713 | O7: 113.2496003
B8: 사업자04 | C8: 93.47242619 | D8: 100.2364193 | E8: - | F8: - | G8: - | H8: - | I8: 98.56536457 | J8: - | K8: 74.41298157 | L8: - | O8: 91.69886213
B9: 사업자05 | C9: 116.5127892 | D9: 100.3077548 | E9: - | F9: - | G9: - | H9: - | I9: 127.2205908 | J9: - | K9: 130.8216882 | L9: 184.8345048 | O9: 126.4401213
B10: 사업자06 | C10: 108.9469965 | D10: 90.64310954 | E10: - | F10: - | G10: - | H10: - | I10: 95.07420495 | J10: - | K10: 73.89786782 | L10: 99.83306776 | O10: 93.87135217
B11: 사업자07 | C11: 132.4363234 | D11: 131.0631229 | E11: - | F11: - | G11: - | H11: - | I11: 134.2635659 | J11: - | K11: 150.3211517 | L11: 187.86268 | O11: 147.1893688
B12: 사업자08 | C12: 100.5937573 | D12: 67.00472604 | E12: - | F12: - | G12: - | H12: - | I12: 114.6483686 | J12: - | K12: 88.1543369 | L12: 101.2265755 | O12: 94.32790029
B13: 사업자09 | C13: 110.8540605 | D13: 109.8861253 | E13: - | F13: - | G13: - | H13: - | I13: 96.86294677 | J13: - | K13: 106.4017481 | L13: 88.49313871 | O13: 103.5023829
B14: 사업자10 | C14: 123.2126413 | D14: 103.9166757 | E14: - | F14: - | G14: - | H14: - | I14: 112.1360466 | J14: - | K14: 109.4873473 | L14: 135.6870097 | O14: 116.4238447
B15: 사업자11 | C15: 100.5014673 | D15: 87.99743503 | E15: - | F15: - | G15: - | H15: - | I15: 89.4289163 | J15: - | K15: 97.15768233 | L15: 94.05140759 | O15: 93.30170114
B16: 사업자12 | C16: 112.7552689 | D16: 89.14164208 | E16: - | F16: - | G16: - | H16: - | I16: 110.2346791 | J16: - | K16: 99.46119693 | L16: 101.5978093 | O16: 102.4461571
B17: 사업자13 | C17: 99.90249931 | D17: 89.73286621 | E17: - | F17: - | G17: - | H17: - | I17: 100.4532516 | J17: - | K17: 100.0875848 | L17: 87.913291 | O17: 96.07318982
B18: 사업자14 | C18: 123.7051453 | D18: 109.6601261 | E18: - | F18: - | G18: - | H18: - | I18: 103.5073581 | J18: - | K18: 116.5802736 | L18: 152.2606192 | O18: 121.0140281
B19: 사업자15 | C19: 104.92 | D19: 128.04 | E19: - | F19: - | G19: - | H19: - | I19: 108.04 | J19: - | K19: 51.4 | L19: 115.84 | O19: 101.648
B20: 사업자16 | C20: 99.059226 | D20: 93.58708226 | E20: - | F20: - | G20: - | H20: - | I20: 85.43267783 | J20: - | K20: 106.7032682 | L20: 114.6826427 | O20: 99.22342415
B21: 사업자17 | C21: 105.6307692 | D21: 96.76923077 | E21: - | F21: - | G21: - | H21: - | I21: 86.44347826 | J21: - | K21: 77.97777778 | L21: 71.31111111 | O21: 85.96
B22: 사업자18 | C22: 105.4343351 | D22: 4.69328942 | E22: - | F22: - | G22: - | H22: - | I22: 74.84561548 | J22: - | K22: - | L22: - | O22: 61.65774667
B23: 사업자19 | C23: 105.1800257 | D23: 103.2623922 | E23: - | F23: - | G23: - | H23: - | I23: 99.23294659 | J23: - | K23: 108.2769273 | L23: 110.3429617 | O23: 105.2295812
B24: 사업자20 | C24: 107.4754268 | D24: 103.124566 | E24: - | F24: - | G24: - | H24: - | I24: 105.009595 | J24: - | K24: 122.3108777 | L24: 89.91011009 | O24: 105.6210234
B25: 사업자21 | C25: 107.3294321 | D25: 94.13672339 | E25: - | F25: - | G25: - | H25: - | I25: 106.6279231 | J25: - | K25: 92.84918447 | L25: 119.5821687 | O25: 104.0459615
B26: 사업자22 | C26: 109.8763691 | D26: 101.6109046 | E26: - | F26: - | G26: - | H26: - | I26: 90.21561338 | J26: - | K26: 98.79348255 | L26: 112.3301573 | O26: 102.4975025
B27: 사업자23 | C27: 105.6656072 | D27: 88.55421687 | E27: - | F27: - | G27: - | H27: - | I27: 88.16985734 | J27: - | K27: 116.3306367 | L27: 109.6533512 | O27: 101.1125939
B28: 사업자24 | C28: 93.49274125 | D28: 123.7959442 | E28: - | F28: - | G28: - | H28: - | I28: 95.6899432 | J28: - | K28: 112.3878537 | L28: 100.6556246 | O28: 102.8660673
B29: 사업자25 | C29: 115.1336898 | D29: 88.85918004 | E29: - | F29: - | G29: - | H29: - | I29: 40.13368984 | J29: - | K29: - | L29: - | O29: 71.06506239
B30: 사업자26 | C30: 111.0936107 | D30: 99.95628023 | E30: - | F30: - | G30: - | H30: - | I30: 95.42792124 | J30: - | K30: 100.1263975 | L30: 129.038457 | O30: 105.97857
B31: 사업자27 | C31: 121.6436501 | D31: 117.4451665 | E31: - | F31: - | G31: - | H31: - | I31: 110.9802329 | J31: - | K31: 124.3272094 | L31: 168.2580482 | O31: 128.270856
B32: 사업자28 | C32: 68.89130435 | D32: 124.2608696 | E32: - | F32: - | G32: - | H32: - | I32: 55.2173913 | J32: - | K32: 103.7391304 | L32: 91.73913043 | O32: 81.13664596
B33: 사업자29 | C33: 97.45127436 | D33: 43.47826087 | E33: - | F33: - | G33: - | H33: - | I33: 107.846077 | J33: - | K33: 110.8945527 | L33: 45.42728636 | O33: 81.01949025
B34: 사업자30 | C34: - | D34: - | E34: - | F34: - | G34: - | H34: - | I34: 12.23809524 | J34: - | K34: - | L34: - | O34: 12.23809524
B35: 평균 | C35: 116.7165247 | D35: 100.5157361 | E35: - | F35: - | G35: - | H35: - | I35: 108.6109662 | J35: - | K35: 100.1070622 | L35: 113.3342674 | O35: 107.4998739

Sheet 사업자별 자발적DR 참여 실적
B2: ㅇ 자발적DR 입찰량
B3: 연 | C3: 2023 | D3: 2024 | E3: 2024 | F3: 2024 | G3: 2024 | H3: 2024 | I3: 2024 | J3: 2024 | K3: 2024 | L3: 2024 | M3: 2024 | N3: 2024
B4: 월 | C4: 12 | D4: 1 | E4: 2 | F4: 3 | G4: 4 | H4: 5 | I4: 6 | J4: 7 | K4: 8 | L4: 9 | M4: 10 | N4: 11 | O4: 합계
B5: 사업자01 | C5: 19656.9 | D5: 8311.1 | E5: 10617.5 | F5: 19046.4 | G5: 25950 | H5: 19735.5 | I5: 14370.2 | J5: 19772.6 | K5: 14150 | L5: 5751 | O5: =SUM(C5:N5) -> 157361.2
B6: 사업자02 | C6: 526 | D6: 322 | E6: 703 | F6: 2980 | G6: 0 | H6: 1387 | I6: 615 | J6: 606 | K6: 1866 | L6: 2525 | O6: =SUM(C6:N6) -> 11530
B7: 사업자03 | C7: 523 | D7: 331 | E7: 568 | F7: 674 | G7: 1544 | H7: 85 | I7: 832.1 | J7: 1285.4 | K7: 2043.7 | L7: 0 | O7: 7886.2
B8: 사업자04 | C8: 0 | D8: 0 | E8: 0 | F8: 0 | G8: 0 | H8: 0 | I8: 0 | J8: 0 | K8: 0 | L8: 0 | O8: 0
B9: 사업자05 | C9: 264 | D9: 100 | E9: 182 | F9: 413 | G9: 281 | H9: 529 | I9: 1150 | J9: 362 | K9: 1322 | L9: 43 | O9: 4646
B10: 사업자06 | C10: 4 | D10: 2 | E10: 3 | F10: 0 | G10: 0 | H10: 0 | I10: 0 | J10: 0 | K10: 0 | L10: 0 | O10: 9
B11: 사업자07 | C11: 0 | D11: 0 | E11: 0 | F11: 0 | G11: 0 | H11: 0 | I11: 0 | J11: 0 | K11: 0 | L11: 0 | O11: 0
B12: 사업자08 | C12: 6146 | D12: 5119 | E12: 3601 | F12: 4585 | G12: 4211 | H12: 836 | I12: 1078 | J12: 1130 | K12: 1240 | L12: 1831 | O12: 29777
B13: 사업자09 | C13: 840 | D13: 434 | E13: 750 | F13: 442 | G13: 805 | H13: 425 | I13: 606.9 | J13: 1440 | K13: 1876.3 | L13: 500 | O13: 8119.2
B14: 사업자10 | C14: 23902 | D14: 19365.7 | E14: 23304 | F14: 26667.3 | G14: 24580 | H14: 26963 | I14: 34349.8 | J14: 31291.6 | K14: 26331.5 | L14: 23775.2 | O14: 260530.1
B15: 사업자11 | C15: 21 | D15: 20 | E15: 15 | F15: 23 | G15: 29 | H15: 31 | I15: 27 | J15: 424 | K15: 257 | L15: 16 | O15: 863
B16: 사업자12 | C16: 16244 | D16: 12270 | E16: 7708 | F16: 10425 | G16: 10355 | H16: 11234 | I16: 11451 | J16: 21980 | K16: 19132 | L16: 11062 | O16: 131861
B17: 사업자13 | C17: 0 | D17: 0 | E17: 0 | F17: 0 | G17: 0 | H17: 0 | I17: 0 | J17: 0 | K17: 0 | L17: 0 | O17: 0
B18: 사업자14 | C18: 227 | D18: 276.2 | E18: 123 | F18: 64 | G18: 180 | H18: 231 | I18: 354 | J18: 1240.3 | K18: 1016.6 | L18: 667.6 | O18: 4379.7
B19: 사업자15 | C19: 18 | D19: 2 | E19: 0 | F19: 5 | G19: 2 | H19: 2 | I19: 5 | J19: 8.7 | K19: 5 | L19: 0 | O19: 47.7
B20: 사업자16 | C20: 198 | D20: 291 | E20: 282 | F20: 329 | G20: 0 | H20: 196 | I20: 40.6 | J20: 519.6 | K20: 274.2 | L20: 386.3 | O20: 2516.7
B21: 사업자17 | C21: 0 | D21: 0 | E21: 0 | F21: 0 | G21: 0 | H21: 0 | I21: 0 | J21: 0 | K21: 0 | L21: 0 | O21: 0
B22: 사업자18 | C22: 0 | D22: 0 | E22: 0 | F22: 0 | G22: 0 | H22: 0 | I22: 0 | J22: 0 | K22: 0 | L22: 0 | O22: 0
B23: 사업자19 | C23: 1122 | D23: 1234 | E23: 1719 | F23: 1417 | G23: 446 | H23: 1914 | I23: 888 | J23: 1143 | K23: 710.9 | L23: 4598.4 | O23: 15192.3
B24: 사업자20 | C24: 0 | D24: 0.8 | E24: 1.2 | F24: 0 | G24: 13.6 | H24: 0.7 | I24: 1213.5 | J24: 8.1 | K24: 37.4 | L24: 5.1 | O24: 1280.4
B25: 사업자21 | C25: 12860.4 | D25: 17754.6 | E25: 21636.5 | F25: 14274.7 | G25: 13847.2 | H25: 17217.8 | I25: 21783.6 | J25: 18178.4 | K25: 17505.5 | L25: 10846.8 | O25: 165905.5
B26: 사업자22 | C26: 0 | D26: 72 | E26: 45 | F26: 47 | G26: 1 | H26: 0 | I26: 0 | J26: 0 | K26: 0 | L26: 0 | O26: 165
B27: 사업자23 | C27: 0 | D27: 0 | E27: 0 | F27: 0 | G27: 0 | H27: 0 | I27: 0 | J27: 0 | K27: 0 | L27: 0 | O27: 0
B28: 사업자24 | C28: 0 | D28: 0 | E28: 0 | F28: 0 | G28: 0 | H28: 0 | I28: 0 | J28: 0 | K28: 0 | L28: 0 | O28: 0
B29: 사업자25 | C29: 4 | D29: 0 | E29: 0 | F29: 0 | G29: 0 | H29: 0 | I29: 0 | J29: 0 | K29: 0 | L29: 0 | O29: 4
B30: 사업자26 | C30: 5014.4 | D30: 4086.5 | E30: 2599.9 | F30: 3148 | G30: 2184 | H30: 2316 | I30: 2927.8 | J30: 4388 | K30: 4075.3 | L30: 2480 | O30: 33219.9
B31: 사업자27 | C31: 1355.7 | D31: 861 | E31: 719.5 | F31: 523 | G31: 618 | H31: 343 | I31: 781 | J31: 3369.2 | K31: 3600 | L31: 959 | O31: 13129.4
B32: 사업자28 | C32: 0 | D32: 0 | E32: 0 | F32: 0 | G32: 0 | H32: 0 | I32: 0 | J32: 0 | K32: 0 | L32: 0 | O32: 0
B33: 사업자29 | C33: 0 | D33: 0 | E33: 0 | F33: 0 | G33: 0 | H33: 0 | I33: 0 | J33: 0 | K33: 0 | L33: 0 | O33: 0
B34: 사업자30 | C34: 0 | D34: 0 | E34: 0 | F34: 0 | G34: 0 | H34: 0 | I34: 0 | J34: 0 | K34: 0 | L34: 0 | O34: 0
B35: 합계 | C35: =SUM(C5:C34) -> 88926.4 | D35: =SUM(D5:D34) -> 70852.9 | E35: 74577.6 | F35: 85063.4 | G35: 85046.8 | H35: 83446 | I35: 92473.5 | J35: 107146.9 | K35: 95443.4 | L35: 65446.4 | O35: 848423.3
B37: ㅇ 자발적DR 낙찰량
B38: 연 | C38: 2023 | D38: 2024 | E38: 2024 | F38: 2024 | G38: 2024 | H38: 2024 | I38: 2024 | J38: 2024 | K38: 2024 | L38: 2024 | M38: 2024 | N38: 2024
B39: 월 | C39: 12 | D39: 1 | E39: 2 | F39: 3 | G39: 4 | H39: 5 | I39: 6 | J39: 7 | K39: 8 | L39: 9 | M39: 10 | N39: 11 | O39: 합계
B40: 사업자01 | C40: 2288.523 | D40: 2157 | E40: 1382 | F40: 1023.62 | G40: 2523 | H40: 1485.666 | I40: 1766.423 | J40: 3426.39 | K40: 4648.511 | L40: 1026 | O40: =SUM(C40:N40) -> 21727.133
B41: 사업자02 | C41: 63 | D41: 21 | E41: 40 | F41: 103 | G41: 0 | H41: 55 | I41: 19 | J41: 44 | K41: 658 | L41: 254 | O41: =SUM(C41:N41) -> 1257
B42: 사업자03 | C42: 68 | D42: 43 | E42: 18 | F42: 32 | G42: 90 | H42: 0 | I42: 35 | J42: 86.6 | K42: 288.8 | L42: 0 | O42: 661.4
B43: 사업자04 | C43: 0 | D43: 0 | E43: 0 | F43: 0 | G43: 0 | H43: 0 | I43: 0 | J43: 0 | K43: 0 | L43: 0 | O43: 0
B44: 사업자05 | C44: 71 | D44: 43 | E44: 19 | F44: 42 | G44: 42 | H44: 24 | I44: 130 | J44: 31 | K44: 196 | L44: 41 | O44: 639
B45: 사업자06 | C45: 2 | D45: 1 | E45: 1 | F45: 0 | G45: 0 | H45: 0 | I45: 0 | J45: 0 | K45: 0 | L45: 0 | O45: 4
B46: 사업자07 | C46: 0 | D46: 0 | E46: 0 | F46: 0 | G46: 0 | H46: 0 | I46: 0 | J46: 0 | K46: 0 | L46: 0 | O46: 0
B47: 사업자08 | C47: 846 | D47: 1433 | E47: 627 | F47: 631 | G47: 631 | H47: 69 | I47: 347.2 | J47: 233 | K47: 658.604 | L47: 684 | O47: 6159.804
B48: 사업자09 | C48: 100 | D48: 13 | E48: 25 | F48: 17 | G48: 15 | H48: 21 | I48: 33 | J48: 261.273 | K48: 422.992 | L48: 143 | O48: 1051.265
B49: 사업자10 | C49: 4267 | D49: 4359 | E49: 5449 | F49: 3645 | G49: 1999 | H49: 2900 | I49: 6596.1 | J49: 9477.545 | K49: 12642.784 | L49: 8811 | O49: 60146.429
B50: 사업자11 | C50: 0 | D50: 0 | E50: 0 | F50: 0 | G50: 3 | H50: 6 | I50: 7 | J50: 28 | K50: 16 | L50: 5 | O50: 65
B51: 사업자12 | C51: 2462 | D51: 1889 | E51: 1443 | F51: 644 | G51: 922 | H51: 871 | I51: 1518 | J51: 2772 | K51: 5555.174 | L51: 2335 | O51: 20411.174
B52: 사업자13 | C52: 0 | D52: 0 | E52: 0 | F52: 0 | G52: 0 | H52: 0 | I52: 0 | J52: 0 | K52: 0 | L52: 0 | O52: 0
B53: 사업자14 | C53: 14 | D53: 61 | E53: 1 | F53: 7 | G53: 14 | H53: 22 | I53: 35 | J53: 136.384 | K53: 106.13 | L53: 82 | O53: 478.514
B54: 사업자15 | C54: 4 | D54: 0 | E54: 0 | F54: 0 | G54: 0 | H54: 0 | I54: 2 | J54: 0.805 | K54: 4.882 | L54: 0 | O54: 11.687
B55: 사업자16 | C55: 12 | D55: 5 | E55: 3 | F55: 6 | G55: 0 | H55: 0 | I55: 1.8 | J55: 17.506 | K55: 47.301 | L55: 15.858 | O55: 108.465
B56: 사업자17 | C56: 0 | D56: 0 | E56: 0 | F56: 0 | G56: 0 | H56: 0 | I56: 0 | J56: 0 | K56: 0 | L56: 0 | O56: 0
B57: 사업자18 | C57: 0 | D57: 0 | E57: 0 | F57: 0 | G57: 0 | H57: 0 | I57: 0 | J57: 0 | K57: 0 | L57: 0 | O57: 0
B58: 사업자19 | C58: 182 | D58: 171 | E58: 256 | F58: 51 | G58: 21 | H58: 123 | I58: 25 | J58: 173 | K58: 221.615 | L58: 353.467 | O58: 1577.082
B59: 사업자20 | C59: 0 | D59: 0 | E59: 0 | F59: 0 | G59: 0 | H59: 0 | I59: 0 | J59: 1.831 | K59: 2.506 | L59: 0 | O59: 4.337
B60: 사업자21 | C60: 2403.2 | D60: 3067.6 | E60: 2287.1 | F60: 1347 | G60: 1578 | H60: 1476 | I60: 2697.9 | J60: 3819.8 | K60: 7731.801 | L60: 3337.842 | O60: 29746.243
B61: 사업자22 | C61: 0 | D61: 32 | E61: 15 | F61: 15 | G61: 1 | H61: 0 | I61: 0 | J61: 0 | K61: 0 | L61: 0 | O61: 63
B62: 사업자23 | C62: 0 | D62: 0 | E62: 0 | F62: 0 | G62: 0 | H62: 0 | I62: 0 | J62: 0 | K62: 0 | L62: 0 | O62: 0
B63: 사업자24 | C63: 0 | D63: 0 | E63: 0 | F63: 0 | G63: 0 | H63: 0 | I63: 0 | J63: 0 | K63: 0 | L63: 0 | O63: 0
B64: 사업자25 | C64: 0 | D64: 0 | E64: 0 | F64: 0 | G64: 0 | H64: 0 | I64: 0 | J64: 0 | K64: 0 | L64: 0 | O64: 0
B65: 사업자26 | C65: 851 | D65: 908 | E65: 366 | F65: 166 | G65: 191 | H65: 87 | I65: 195 | J65: 629.961 | K65: 1463.789 | L65: 874 | O65: 5731.75
B66: 사업자27 | C66: 224 | D66: 168 | E66: 58 | F66: 59 | G66: 81 | H66: 18 | I66: 107.6 | J66: 371 | K66: 719.1 | L66: 206.3 | O66: 2012
B67: 사업자28 | C67: 0 | D67: 0 | E67: 0 | F67: 0 | G67: 0 | H67: 0 | I67: 0 | J67: 0 | K67: 0 | L67: 0 | O67: 0
B68: 사업자29 | C68: 0 | D68: 0 | E68: 0 | F68: 0 | G68: 0 | H68: 0 | I68: 0 | J68: 0 | K68: 0 | L68: 0 | O68: 0
B69: 사업자30 | C69: 0 | D69: 0 | E69: 0 | F69: 0 | G69: 0 | H69: 0 | I69: 0 | J69: 0 | K69: 0 | L69: 0 | O69: 0
B70: 합계 | C70: =SUM(C40:C69) -> 13857.723 | D70: =SUM(D40:D69) -> 14371.6 | E70: =SUM(E40:E69) -> 11990.1 | F70: =SUM(F40:F69) -> 7788.62 | G70: =SUM(G40:G69) -> 8111 | H70: 7157.666 | I70: 13516.023 | J70: 21510.095 | K70: 35383.989 | L70: 18168.467 | O70: 151855.283
B72: ㅇ 자발적DR 감축량
B73: 연 | C73: 2023 | D73: 2024 | E73: 2024 | F73: 2024 | G73: 2024 | H73: 2024 | I73: 2024 | J73: 2024 | K73: 2024 | L73: 2024 | M73: 2024 | N73: 2024
B74: 월 | C74: 12 | D74: 1 | E74: 2 | F74: 3 | G74: 4 | H74: 5 | I74: 6 | J74: 7 | K74: 8 | L74: 9 | M74: 10 | N74: 11 | O74: 합계
B75: 사업자01 | C75: 3707.718 | D75: 4867.138 | E75: 2833.756 | F75: 2081.007 | G75: 4561.452 | H75: 2654.844 | I75: 3446.931 | J75: 5541.979 | K75: 8917.951 | L75: 1505.316 | O75: =SUM(C75:N75) -> 40118.092
B76: 사업자02 | C76: 162.218 | D76: 38.644 | E76: 63.616 | F76: 201.362 | G76: 0 | H76: 83.957 | I76: 39.922 | J76: 63.115 | K76: 773.519 | L76: 382.249 | O76: =SUM(C76:N76) -> 1808.602
B77: 사업자03 | C77: 100.606 | D77: 53.154 | E77: 30.898 | F77: 46.672 | G77: 131.7 | H77: 0 | I77: 68.587 | J77: 117.904 | K77: 413.963 | L77: 0 | O77: 963.484
B78: 사업자04 | C78: 0 | D78: 0 | E78: 0 | F78: 0 | G78: 0 | H78: 0 | I78: 0 | J78: 0 | K78: 0 | L78: 0 | O78: 0
B79: 사업자05 | C79: 92.946 | D79: 54.54 | E79: 26.971 | F79: 71.677 | G79: 79.421 | H79: 43.407 | I79: 229.58 | J79: 83.325 | K79: 268.972 | L79: 84.757 | O79: 1035.596
B80: 사업자06 | C80: 2.194 | D80: 1.239 | E80: 1.35 | F80: 0 | G80: 0 | H80: 0 | I80: 0 | J80: 0 | K80: 0 | L80: 0 | O80: 4.783
B81: 사업자07 | C81: 0 | D81: 0 | E81: 0 | F81: 0 | G81: 0 | H81: 0 | I81: 0 | J81: 0 | K81: 0 | L81: 0 | O81: 0
B82: 사업자08 | C82: 1125.088 | D82: 1693.086 | E82: 626.26 | F82: 785.927 | G82: 841.612 | H82: 144.797 | I82: 527.615 | J82: 390.331 | K82: 966.812 | L82: 780.743 | O82: 7882.271
B83: 사업자09 | C83: 119.616 | D83: 21.572 | E83: 55.389 | F83: 14.923 | G83: 24.765 | H83: 30.058 | I83: 60.686 | J83: 310.66 | K83: 473.138 | L83: 185.05 | O83: 1295.857
B84: 사업자10 | C84: 7170.739 | D84: 8452.401 | E84: 9525.966 | F84: 5721.832 | G84: 3749.915 | H84: 5249.466 | I84: 9249.227 | J84: 14057.608 | K84: 20317.574 | L84: 16082.327 | O84: 99577.055
B85: 사업자11 | C85: 0 | D85: 0 | E85: 0 | F85: 0 | G85: 3.898 | H85: 8.123 | I85: 8.538 | J85: 41.065 | K85: 13.849 | L85: 9.499 | O85: 84.972
B86: 사업자12 | C86: 3021.675 | D86: 2506.504 | E86: 1931.904 | F86: 867.825 | G86: 1208.202 | H86: 994.621 | I86: 2060.964 | J86: 3751.29 | K86: 7374.34 | L86: 2768.871 | O86: 26486.196
B87: 사업자13 | C87: 0 | D87: 0 | E87: 0 | F87: 0 | G87: 0 | H87: 0 | I87: 0 | J87: 0 | K87: 0 | L87: 0 | O87: 0
B88: 사업자14 | C88: 17.869 | D88: 74.645 | E88: 1.184 | F88: 6.975 | G88: 16.937 | H88: 27.412 | I88: 48.404 | J88: 180.686 | K88: 132.874 | L88: 152.555 | O88: 659.541
B89: 사업자15 | C89: 7.821 | D89: 0 | E89: 0 | F89: 0 | G89: 0 | H89: 0 | I89: 0.461 | J89: 1.083 | K89: 3.98 | L89: 0 | O89: 13.345
B90: 사업자16 | C90: 14.299 | D90: 7.118 | E90: 5.556 | F90: 12.277 | G90: 0 | H90: 0 | I90: 1.952 | J90: 33.91 | K90: 60.968 | L90: 22.25 | O90: 158.33
B91: 사업자17 | C91: 0 | D91: 0 | E91: 0 | F91: 0 | G91: 0 | H91: 0 | I91: 0 | J91: 0 | K91: 0 | L91: 0 | O91: 0
B92: 사업자18 | C92: 0 | D92: 0 | E92: 0 | F92: 0 | G92: 0 | H92: 0 | I92: 0 | J92: 0 | K92: 0 | L92: 0 | O92: 0
B93: 사업자19 | C93: 336.802 | D93: 218.782 | E93: 498.072 | F93: 58.733 | G93: 22.224 | H93: 168.366 | I93: 43.958 | J93: 216.904 | K93: 239.998 | L93: 585.104 | O93: 2388.943
B94: 사업자20 | C94: 0 | D94: 0 | E94: 0 | F94: 0 | G94: 0 | H94: 0 | I94: 0 | J94: 3.073 | K94: 3.987 | L94: 0 | O94: 7.06
B95: 사업자21 | C95: 2849.134 | D95: 4069.747 | E95: 2630.217 | F95: 1809.639 | G95: 2140.623 | H95: 1875.168 | I95: 3107.587 | J95: 4716.683 | K95: 9196.023 | L95: 3912.943 | O95: 36307.764
B96: 사업자22 | C96: 0 | D96: 69.583 | E96: 25.29 | F96: 17.241 | G96: 0.778 | H96: 0 | I96: 0 | J96: 0 | K96: 0 | L96: 0 | O96: 112.892
B97: 사업자23 | C97: 0 | D97: 0 | E97: 0 | F97: 0 | G97: 0 | H97: 0 | I97: 0 | J97: 0 | K97: 0 | L97: 0 | O97: 0
B98: 사업자24 | C98: 0 | D98: 0 | E98: 0 | F98: 0 | G98: 0 | H98: 0 | I98: 0 | J98: 0 | K98: 0 | L98: 0 | O98: 0
B99: 사업자25 | C99: 0 | D99: 0 | E99: 0 | F99: 0 | G99: 0 | H99: 0 | I99: 0 | J99: 0 | K99: 0 | L99: 0 | O99: 0
B100: 사업자26 | C100: 970.388 | D100: 1032.941 | E100: 434.418 | F100: 232.178 | G100: 233.497 | H100: 115.208 | I100: 251.092 | J100: 827.669 | K100: 1866.144 | L100: 1083.708 | O100: 7047.243
B101: 사업자27 | C101: 254.011 | D101: 222.947 | E101: 75.163 | F101: 68.441 | G101: 118.026 | H101: 24.408 | I101: 130.659 | J101: 489.533 | K101: 836.748 | L101: 287.529 | O101: 2507.465
B102: 사업자28 | C102: 0 | D102: 0 | E102: 0 | F102: 0 | G102: 0 | H102: 0 | I102: 0 | J102: 0 | K102: 0 | L102: 0 | O102: 0
B103: 사업자29 | C103: 0 | D103: 0 | E103: 0 | F103: 0 | G103: 0 | H103: 0 | I103: 0 | J103: 0 | K103: 0 | L103: 0 | O103: 0
B104: 사업자30 | C104: 0 | D104: 0 | E104: 0 | F104: 0 | G104: 0 | H104: 0 | I104: 0 | J104: 0 | K104: 0 | L104: 0 | O104: 0
B105: 합계 | C105: =SUM(C75:C104) -> 19953.124 | D105: =SUM(D75:D104) -> 23384.041 | E105: =SUM(E75:E104) -> 18766.01 | F105: =SUM(F75:F104) -> 11996.709 | G105: =SUM(G75:G104) -> 13133.05 | H105: 11419.835 | I105: =SUM(I75:I104) -> 19276.163 | J105: =SUM(J75:J104) -> 30826.818 | K105: =SUM(K75:K104) -> 51860.84 | L105: =SUM(L75:L104) -> 27842.901 | O105: 228459.491
B107: ㅇ 자발적DR 감축이행률
B108: 연 | C108: 2023 | D108: 2024 | E108: 2024 | F108: 2024 | G108: 2024 | H108: 2024 | I108: 2024 | J108: 2024 | K108: 2024 | L108: 2024 | M108: 2024 | N108: 2024
B109: 월 | C109: 12 | D109: 1 | E109: 2 | F109: 3 | G109: 4 | H109: 5 | I109: 6 | J109: 7 | K109: 8 | L109: 9 | M109: 10 | N109: 11 | O109: 평균
B110: 사업자01 | C110: =IFERROR(C75/C40*100,"-") -> 162.0135782 | D110: 225.6438572 | E110: 205.0474674 | F110: 203.2987828 | G110: 180.7947681 | H110: 178.6972307 | I110: 195.136216 | J110: 161.7439638 | K110: =IFERROR(K75/K40*100,"-") -> 191.8453242 | L110: 146.7169591 | O110: =IFERROR(O75/O40*100,"-") -> 184.6451255
B111: 사업자02 | C111: 257.4888889 | D111: 184.0190476 | E111: 159.04 | F111: 195.4970874 | G111: - | H111: 152.6490909 | I111: 210.1157895 | J111: 143.4431818 | K111: =IFERROR(K76/K41*100,"-") -> 117.556079 | L111: 150.4917323 | O111: 143.8824185
B112: 사업자03 | C112: 147.95 | D112: 123.6139535 | E112: 171.6555556 | F112: 145.85 | G112: 146.3333333 | H112: - | I112: 195.9628571 | J112: 136.147806 | K112: =IFERROR(K77/K42*100,"-") -> 143.3389889 | L112: - | O112: 145.67342
B113: 사업자04 | C113: - | D113: - | E113: - | F113: - | G113: - | H113: - | I113: - | J113: - | K113: =IFERROR(K78/K43*100,"-") -> - | L113: - | O113: -
B114: 사업자05 | C114: 130.9098592 | D114: 126.8372093 | E114: 141.9526316 | F114: 170.6595238 | G114: 189.097619 | H114: 180.8625 | I114: 176.6 | J114: 268.7903226 | K114: =IFERROR(K79/K44*100,"-") -> 137.2306122 | L114: 206.7243902 | O114: 162.0651017
B115: 사업자06 | C115: 109.7 | D115: 123.9 | E115: 135 | F115: - | G115: - | H115: - | I115: - | J115: - | K115: =IFERROR(K80/K45*100,"-") -> - | L115: - | O115: 119.575
B116: 사업자07 | C116: - | D116: - | E116: - | F116: - | G116: - | H116: - | I116: - | J116: - | K116: =IFERROR(K81/K46*100,"-") -> - | L116: - | O116: -
B117: 사업자08 | C117: 132.9891253 | D117: 118.1497558 | E117: 99.88197767 | F117: 124.5526149 | G117: 133.377496 | H117: 209.8507246 | I117: 151.9628456 | J117: 167.5240343 | K117: =IFERROR(K82/K47*100,"-") -> 146.7971649 | L117: 114.1437135 | O117: 127.9630164
B118: 사업자09 | C118: 119.616 | D118: 165.9384615 | E118: 221.556 | F118: 87.78235294 | G118: 165.1 | H118: 143.1333333 | I118: 183.8969697 | J118: 118.9024507 | K118: =IFERROR(K83/K48*100,"-") -> 111.8550705 | L118: 129.4055944 | O118: 123.2664457
B119: 사업자10 | C119: 168.0510663 | D119: 193.9068823 | E119: 174.8204441 | F119: 156.9775583 | G119: 187.5895448 | H119: 181.016069 | I119: 140.2226619 | J119: 148.3254155 | K119: =IFERROR(K84/K49*100,"-") -> 160.7049049 | L119: 182.525559 | O119: 165.5577175
B120: 사업자11 | C120: - | D120: - | E120: - | F120: - | G120: 129.9333333 | H120: 135.3833333 | I120: 121.9714286 | J120: 146.6607143 | K120: =IFERROR(K85/K50*100,"-") -> 86.55625 | L120: 189.98 | O120: 130.7261538
B121: 사업자12 | C121: 122.7325345 | D121: 132.6894653 | E121: 133.8810811 | F121: 134.7554348 | G121: 131.0414317 | H121: 114.1929966 | I121: 135.7683794 | J121: 135.3279221 | K121: =IFERROR(K86/K51*100,"-") -> 132.7472371 | L121: 118.5811991 | O121: 129.763217
B122: 사업자13 | C122: - | D122: - | E122: - | F122: - | G122: - | H122: - | I122: - | J122: - | K122: =IFERROR(K87/K52*100,"-") -> - | L122: - | O122: -
B123: 사업자14 | C123: 127.6357143 | D123: 122.3688525 | E123: 118.4 | F123: 99.64285714 | G123: 120.9785714 | H123: 124.6 | I123: 138.2971429 | J123: 132.4832825 | K123: =IFERROR(K88/K53*100,"-") -> 125.1992839 | L123: 186.0426829 | O123: 137.831077
B124: 사업자15 | C124: 195.525 | D124: - | E124: - | F124: - | G124: - | H124: - | I124: 23.05 | J124: 134.5341615 | K124: =IFERROR(K89/K54*100,"-") -> 81.52396559 | L124: - | O124: 114.1867032
B125: 사업자16 | C125: 119.1583333 | D125: 142.36 | E125: 185.2 | F125: 204.6166667 | G125: - | H125: - | I125: 108.4444444 | J125: 193.7050154 | K125: =IFERROR(K90/K55*100,"-") -> 128.8936809 | L125: 140.3077311 | O125: 145.9733555
B126: 사업자17 | C126: - | D126: - | E126: - | F126: - | G126: - | H126: - | I126: - | J126: - | K126: =IFERROR(K91/K56*100,"-") -> - | L126: - | O126: -
B127: 사업자18 | C127: - | D127: - | E127: - | F127: - | G127: - | H127: - | I127: - | J127: - | K127: =IFERROR(K92/K57*100,"-") -> - | L127: - | O127: -
B128: 사업자19 | C128: 185.056044 | D128: 127.9426901 | E128: 194.559375 | F128: 115.1627451 | G128: 105.8285714 | H128: 136.8829268 | I128: 175.832 | J128: 125.3780347 | K128: =IFERROR(K93/K58*100,"-") -> 108.2950161 | L128: 165.5328503 | O128: 151.4786802
B129: 사업자20 | C129: - | D129: - | E129: - | F129: - | G129: - | H129: - | I129: - | J129: 167.8317859 | K129: =IFERROR(K94/K59*100,"-") -> 159.0981644 | L129: - | O129: 162.7853355
B130: 사업자21 | C130: 118.5558422 | D130: 132.6687639 | E130: 115.0022736 | F130: 134.3458797 | G130: 135.6541825 | H130: 127.0439024 | I130: 115.1854035 | J130: 123.4798419 | K130: =IFERROR(K95/K60*100,"-") -> 118.9376576 | L130: 117.2297251 | O130: 122.0583184
B131: 사업자22 | C131: - | D131: 217.446875 | E131: 168.6 | F131: 114.94 | G131: 77.8 | H131: - | I131: - | J131: - | K131: =IFERROR(K96/K61*100,"-") -> - | L131: - | O131: 179.1936508
B132: 사업자23 | C132: - | D132: - | E132: - | F132: - | G132: - | H132: - | I132: - | J132: - | K132: =IFERROR(K97/K62*100,"-") -> - | L132: - | O132: -
B133: 사업자24 | C133: - | D133: - | E133: - | F133: - | G133: - | H133: - | I133: - | J133: - | K133: =IFERROR(K98/K63*100,"-") -> - | L133: - | O133: -
B134: 사업자25 | C134: - | D134: - | E134: - | F134: - | G134: - | H134: - | I134: - | J134: - | K134: =IFERROR(K99/K64*100,"-") -> - | L134: - | O134: -
B135: 사업자26 | C135: 114.0291422 | D135: 113.760022 | E135: 118.6934426 | F135: 139.8662651 | G135: 122.2497382 | H135: 132.4229885 | I135: 128.7651282 | J135: 131.3841651 | K135: =IFERROR(K100/K65*100,"-") -> 127.4872266 | L135: 123.9940503 | O135: 122.9509836
B136: 사업자27 | C136: 113.3977679 | D136: 132.7065476 | E136: 129.5913793 | F136: 116.0016949 | G136: 145.7111111 | H136: 135.6 | I136: 121.4302974 | J136: 131.9495957 | K136: =IFERROR(K101/K66*100,"-") -> 116.3604506 | L136: 139.3742123 | O136: 124.625497
B137: 사업자28 | C137: - | D137: - | E137: - | F137: - | G137: - | H137: - | I137: - | J137: - | K137: =IFERROR(K102/K67*100,"-") -> - | L137: - | O137: -
B138: 사업자29 | C138: - | D138: - | E138: - | F138: - | G138: - | H138: - | I138: - | J138: - | K138: =IFERROR(K103/K68*100,"-") -> - | L138: - | O138: -
B139: 사업자30 | C139: - | D139: - | E139: - | F139: - | G139: - | H139: - | I139: - | J139: - | K139: =IFERROR(K104/K69*100,"-") -> - | L139: - | O139: -
B140: 평균 | C140: 143.9855884 | D140: 162.710074 | E140: 156.5125395 | F140: 154.0286854 | G140: 161.9165331 | H140: 159.546911 | I140: 142.6171219 | J140: 143.3132583 | K140: =IFERROR(K105/K70*100,"-") -> 146.565838 | L140: 153.2484882 | O140: 150.4455337

Sheet 사업자별 거래제한 및 입찰제한 내역
B2: ㅇ 신뢰성DR 이행률 80% 미만 횟수 및 거래제한 자원 수
B3: 이행률 80% 미만 횟수 | P3: 거래제한 자원 수
B4: 연 | C4: 2023 | D4: 2024 | E4: 2024 | F4: 2024 | G4: 2024 | H4: 2024 | I4: 2024 | J4: 2024 | K4: 2024 | L4: 2024 | M4: 2024 | N4: 2024
B5: 월 | C5: 12 | D5: 1 | E5: 2 | F5: 3 | G5: 4 | H5: 5 | I5: 6 | J5: 7 | K5: 8 | L5: 9 | M5: 10 | N5: 11 | O5: 합계
B6: 사업자01 | C6: 0 | D6: 0 | E6: 0 | F6: 0 | G6: 0 | H6: 0 | I6: 0 | J6: 0 | K6: 0 | L6: 1 | O6: =SUM(C6:N6) -> 1 | P6: 0
B7: 사업자02 | C7: 0 | D7: 0 | E7: 0 | F7: 0 | G7: 0 | H7: 0 | I7: 1 | J7: 0 | K7: 0 | L7: 0 | O7: =SUM(C7:N7) -> 1 | P7: 0
B8: 사업자03 | C8: 0 | D8: 0 | E8: 0 | F8: 0 | G8: 0 | H8: 0 | I8: 0 | J8: 0 | K8: 0 | L8: 0 | O8: 0 | P8: 0
B9: 사업자04 | C9: 0 | D9: 0 | E9: 0 | F9: 0 | G9: 0 | H9: 0 | I9: 0 | J9: 0 | K9: 1 | L9: 0 | O9: 1 | P9: 0
B10: 사업자05 | C10: 0 | D10: 0 | E10: 0 | F10: 0 | G10: 0 | H10: 0 | I10: 1 | J10: 0 | K10: 0 | L10: 0 | O10: 1 | P10: 0
B11: 사업자06 | C11: 0 | D11: 0 | E11: 0 | F11: 0 | G11: 0 | H11: 0 | I11: 0 | J11: 0 | K11: 2 | L11: 0 | O11: 2 | P11: 0
B12: 사업자07 | C12: 0 | D12: 0 | E12: 0 | F12: 0 | G12: 0 | H12: 0 | I12: 0 | J12: 0 | K12: 0 | L12: 0 | O12: 0 | P12: 0
B13: 사업자08 | C13: 0 | D13: 1 | E13: 0 | F13: 0 | G13: 0 | H13: 0 | I13: 0 | J13: 0 | K13: 0 | L13: 0 | O13: 1 | P13: 0
B14: 사업자09 | C14: 0 | D14: 0 | E14: 0 | F14: 0 | G14: 0 | H14: 0 | I14: 1 | J14: 0 | K14: 0 | L14: 1 | O14: 2 | P14: 0
B15: 사업자10 | C15: 0 | D15: 0 | E15: 0 | F15: 0 | G15: 0 | H15: 0 | I15: 0 | J15: 0 | K15: 0 | L15: 0 | O15: 0 | P15: 0
B16: 사업자11 | C16: 0 | D16: 1 | E16: 0 | F16: 0 | G16: 0 | H16: 0 | I16: 1 | J16: 0 | K16: 1 | L16: 1 | O16: 4 | P16: 1
B17: 사업자12 | C17: 0 | D17: 0 | E17: 0 | F17: 0 | G17: 0 | H17: 0 | I17: 0 | J17: 0 | K17: 0 | L17: 0 | O17: 0 | P17: 0
B18: 사업자13 | C18: 0 | D18: 1 | E18: 0 | F18: 0 | G18: 0 | H18: 0 | I18: 0 | J18: 0 | K18: 0 | L18: 1 | O18: 2 | P18: 0
B19: 사업자14 | C19: 0 | D19: 0 | E19: 0 | F19: 0 | G19: 0 | H19: 0 | I19: 0 | J19: 0 | K19: 0 | L19: 1 | O19: 1 | P19: 0
B20: 사업자15 | C20: 0 | D20: 0 | E20: 0 | F20: 0 | G20: 0 | H20: 0 | I20: 0 | J20: 0 | K20: 1 | L20: 0 | O20: 1 | P20: 0
B21: 사업자16 | C21: 0 | D21: 0 | E21: 0 | F21: 0 | G21: 0 | H21: 0 | I21: 0 | J21: 0 | K21: 0 | L21: 0 | O21: 0 | P21: 0
B22: 사업자17 | C22: 0 | D22: 0 | E22: 0 | F22: 0 | G22: 0 | H22: 0 | I22: 1 | J22: 0 | K22: 2 | L22: 2 | O22: 5 | P22: 0
B23: 사업자18 | C23: 0 | D23: 1 | E23: 0 | F23: 0 | G23: 0 | H23: 0 | I23: 1 | J23: 0 | K23: 0 | L23: 0 | O23: 2 | P23: 0
B24: 사업자19 | C24: 0 | D24: 0 | E24: 0 | F24: 0 | G24: 0 | H24: 0 | I24: 0 | J24: 0 | K24: 0 | L24: 0 | O24: 0 | P24: 0
B25: 사업자20 | C25: 0 | D25: 0 | E25: 0 | F25: 0 | G25: 0 | H25: 0 | I25: 0 | J25: 0 | K25: 0 | L25: 2 | O25: 2 | P25: 0
B26: 사업자21 | C26: 0 | D26: 1 | E26: 0 | F26: 0 | G26: 0 | H26: 0 | I26: 0 | J26: 0 | K26: 1 | L26: 0 | O26: 2 | P26: 0
B27: 사업자22 | C27: 0 | D27: 0 | E27: 0 | F27: 0 | G27: 0 | H27: 0 | I27: 0 | J27: 0 | K27: 0 | L27: 0 | O27: 0 | P27: 0
B28: 사업자23 | C28: 0 | D28: 1 | E28: 0 | F28: 0 | G28: 0 | H28: 0 | I28: 0 | J28: 0 | K28: 0 | L28: 0 | O28: 1 | P28: 0
B29: 사업자24 | C29: 0 | D29: 0 | E29: 0 | F29: 0 | G29: 0 | H29: 0 | I29: 0 | J29: 0 | K29: 0 | L29: 0 | O29: 0 | P29: 0
B30: 사업자25 | C30: 0 | D30: 0 | E30: 0 | F30: 0 | G30: 0 | H30: 0 | I30: 2 | J30: 0 | K30: 0 | L30: 0 | O30: 2 | P30: 0
B31: 사업자26 | C31: 0 | D31: 0 | E31: 0 | F31: 0 | G31: 0 | H31: 0 | I31: 0 | J31: 0 | K31: 0 | L31: 0 | O31: 0 | P31: 0
B32: 사업자27 | C32: 0 | D32: 0 | E32: 0 | F32: 0 | G32: 0 | H32: 0 | I32: 1 | J32: 0 | K32: 0 | L32: 0 | O32: 1 | P32: 0
B33: 사업자28 | C33: 1 | D33: 0 | E33: 0 | F33: 0 | G33: 0 | H33: 0 | I33: 1 | J33: 0 | K33: 0 | L33: 0 | O33: 2 | P33: 0
B34: 사업자29 | C34: 0 | D34: 1 | E34: 0 | F34: 0 | G34: 0 | H34: 0 | I34: 0 | J34: 0 | K34: 0 | L34: 1 | O34: 2 | P34: 0
B35: 사업자30 | C35: 0 | D35: 0 | E35: 0 | F35: 0 | G35: 0 | H35: 0 | I35: 2 | J35: 0 | K35: 0 | L35: 0 | O35: 2 | P35: 0
B36: 합계 | C36: =SUM(C6:C35) -> 1 | D36: =SUM(D6:D35) -> 7 | E36: 0 | F36: 0 | G36: 0 | H36: 0 | I36: 12 | J36: 0 | K36: 8 | L36: =SUM(L6:L35) -> 10 | O36: 38 | P36: =SUM(P6:P35) -> 1
B38: ㅇ 자발적DR 이행률 80% 미만 횟수 및 입찰제한 자원 수
B39: 이행률 80% 미만 횟수 | P39: 입찰제한 자원 수
B40: 연 | C40: 2023 | D40: 2024 | E40: 2024 | F40: 2024 | G40: 2024 | H40: 2024 | I40: 2024 | J40: 2024 | K40: 2024 | L40: 2024 | M40: 2024 | N40: 2024
B41: 월 | C41: 12 | D41: 1 | E41: 2 | F41: 3 | G41: 4 | H41: 5 | I41: 6 | J41: 7 | K41: 8 | L41: 9 | M41: 10 | N41: 11 | O41: 합계
B42: 사업자01 | C42: 0 | D42: 0 | E42: 0 | F42: 0 | G42: 1 | H42: 2 | I42: 0 | J42: 0 | K42: 2 | L42: 0 | O42: =SUM(C42:N42) -> 5 | P42: 0
B43: 사업자02 | C43: 0 | D43: 0 | E43: 0 | F43: 0 | G43: 0 | H43: 0 | I43: 0 | J43: 0 | K43: 1 | L43: 0 | O43: =SUM(C43:N43) -> 1 | P43: 0
B44: 사업자03 | C44: 0 | D44: 0 | E44: 0 | F44: 1 | G44: 0 | H44: 0 | I44: 0 | J44: 0 | K44: 1 | L44: 0 | O44: 2 | P44: 0
B45: 사업자04 | C45: 0 | D45: 0 | E45: 0 | F45: 0 | G45: 0 | H45: 0 | I45: 0 | J45: 0 | K45: 0 | L45: 0 | O45: 0 | P45: 0
B46: 사업자05 | C46: 0 | D46: 1 | E46: 1 | F46: 0 | G46: 0 | H46: 0 | I46: 0 | J46: 0 | K46: 1 | L46: 0 | O46: 3 | P46: 0
B47: 사업자06 | C47: 0 | D47: 0 | E47: 0 | F47: 0 | G47: 0 | H47: 0 | I47: 0 | J47: 0 | K47: 0 | L47: 0 | O47: 0 | P47: 0
B48: 사업자07 | C48: 0 | D48: 0 | E48: 0 | F48: 0 | G48: 0 | H48: 0 | I48: 0 | J48: 0 | K48: 0 | L48: 0 | O48: 0 | P48: 0
B49: 사업자08 | C49: 1 | D49: 0 | E49: 0 | F49: 0 | G49: 1 | H49: 0 | I49: 2 | J49: 0 | K49: 0 | L49: 0 | O49: 4 | P49: 0
B50: 사업자09 | C50: 0 | D50: 0 | E50: 0 | F50: 1 | G50: 0 | H50: 0 | I50: 0 | J50: 0 | K50: 4 | L50: 1 | O50: 6 | P50: 1
B51: 사업자10 | C51: 1 | D51: 0 | E51: 0 | F51: 0 | G51: 0 | H51: 0 | I51: 0 | J51: 0 | K51: 0 | L51: 1 | O51: 2 | P51: 0
B52: 사업자11 | C52: 0 | D52: 0 | E52: 0 | F52: 0 | G52: 0 | H52: 0 | I52: 0 | J52: 0 | K52: 2 | L52: 0 | O52: 2 | P52: 0
B53: 사업자12 | C53: 0 | D53: 0 | E53: 0 | F53: 0 | G53: 0 | H53: 0 | I53: 0 | J53: 0 | K53: 0 | L53: 0 | O53: 0 | P53: 0
B54: 사업자13 | C54: 0 | D54: 0 | E54: 0 | F54: 0 | G54: 0 | H54: 0 | I54: 0 | J54: 0 | K54: 0 | L54: 0 | O54: 0 | P54: 0
B55: 사업자14 | C55: 0 | D55: 0 | E55: 0 | F55: 0 | G55: 0 | H55: 0 | I55: 0 | J55: 0 | K55: 0 | L55: 0 | O55: 0 | P55: 0
B56: 사업자15 | C56: 0 | D56: 0 | E56: 0 | F56: 0 | G56: 0 | H56: 0 | I56: 2 | J56: 0 | K56: 3 | L56: 0 | O56: 5 | P56: 1
B57: 사업자16 | C57: 0 | D57: 0 | E57: 0 | F57: 0 | G57: 0 | H57: 0 | I57: 1 | J57: 0 | K57: 0 | L57: 0 | O57: 1 | P57: 0
B58: 사업자17 | C58: 0 | D58: 0 | E58: 0 | F58: 0 | G58: 0 | H58: 0 | I58: 0 | J58: 0 | K58: 0 | L58: 0 | O58: 0 | P58: 0
B59: 사업자18 | C59: 0 | D59: 0 | E59: 0 | F59: 0 | G59: 0 | H59: 0 | I59: 0 | J59: 0 | K59: 0 | L59: 0 | O59: 0 | P59: 0
B60: 사업자19 | C60: 3 | D60: 1 | E60: 2 | F60: 0 | G60: 0 | H60: 0 | I60: 0 | J60: 0 | K60: 0 | L60: 0 | O60: 6 | P60: 1
B61: 사업자20 | C61: 0 | D61: 0 | E61: 0 | F61: 0 | G61: 0 | H61: 0 | I61: 0 | J61: 0 | K61: 0 | L61: 0 | O61: 0 | P61: 0
B62: 사업자21 | C62: 0 | D62: 0 | E62: 0 | F62: 0 | G62: 0 | H62: 1 | I62: 1 | J62: 0 | K62: 0 | L62: 1 | O62: 3 | P62: 1
B63: 사업자22 | C63: 0 | D63: 1 | E63: 1 | F63: 1 | G63: 1 | H63: 0 | I63: 0 | J63: 0 | K63: 0 | L63: 0 | O63: 4 | P63: 1
B64: 사업자23 | C64: 0 | D64: 0 | E64: 0 | F64: 0 | G64: 0 | H64: 0 | I64: 0 | J64: 0 | K64: 0 | L64: 0 | O64: 0 | P64: 0
B65: 사업자24 | C65: 0 | D65: 0 | E65: 0 | F65: 0 | G65: 0 | H65: 0 | I65: 0 | J65: 0 | K65: 0 | L65: 0 | O65: 0 | P65: 0
B66: 사업자25 | C66: 0 | D66: 0 | E66: 0 | F66: 0 | G66: 0 | H66: 0 | I66: 0 | J66: 0 | K66: 0 | L66: 0 | O66: 0 | P66: 0
B67: 사업자26 | C67: 1 | D67: 1 | E67: 0 | F67: 1 | G67: 0 | H67: 0 | I67: 0 | J67: 0 | K67: 0 | L67: 0 | O67: 3 | P67: 0
B68: 사업자27 | C68: 1 | D68: 0 | E68: 0 | F68: 0 | G68: 0 | H68: 0 | I68: 0 | J68: 1 | K68: 0 | L68: 0 | O68: 2 | P68: 0
B69: 사업자28 | C69: 0 | D69: 0 | E69: 0 | F69: 0 | G69: 0 | H69: 0 | I69: 0 | J69: 0 | K69: 0 | L69: 0 | O69: 0 | P69: 0
B70: 사업자29 | C70: 0 | D70: 0 | E70: 0 | F70: 0 | G70: 0 | H70: 0 | I70: 0 | J70: 0 | K70: 0 | L70: 0 | O70: 0 | P70: 0
B71: 사업자30 | C71: 0 | D71: 0 | E71: 0 | F71: 0 | G71: 0 | H71: 0 | I71: 0 | J71: 0 | K71: 0 | L71: 0 | O71: 0 | P71: 0
B72: 합계 | C72: =SUM(C42:C71) -> 7 | D72: =SUM(D42:D71) -> 4 | E72: =SUM(E42:E71) -> 4 | F72: =SUM(F42:F71) -> 4 | G72: =SUM(G42:G71) -> 3 | H72: 3 | I72: =SUM(I42:I71) -> 6 | J72: =SUM(J42:J71) -> 1 | K72: =SUM(K42:K71) -> 14 | L72: =SUM(L42:L71) -> 3 | O72: 49 | P72: =SUM(P42:P71) -> 5
